{"text_format":"1","workbook":"xlsx","n_sheets":5,"sheets":["DATA","User Instructions","DATA ENTRY","FORM","Changes"],"not_rendered":{"charts":0,"images":6,"macros":1,"external_links":0,"defined_names":59,"comments":2,"pivot_tables":0},"unopened":[],"bounds":{"document_bytes":16777216,"sheet_cells":100000,"rows_first":2000,"rows_last":500,"rows_between":2000,"halvings":0,"cell_chars":16384,"cell_head_chars":4096},"cells_cut":0,"cells_raw":0,"read":"whole","date_system":"1900"}

{"sheet":"DATA","index":0,"n_rows":287,"n_cols":179,"rows_kept":287,"cut":false,"hidden":true,"merged":[[6,42,13,45]]}
[null,null,null,null,null,null,null,null,null,null,null,null,1,"Select your first remittance date >",null,null,null,null,null,null,null,null,1,2,3,4,5,{"$f":"+AA1+1","v":6},{"$f":"+AB1+1","v":7},8,9,10,11,12,null,null,null,null,null,null,null,null,1,null,null,null,null,1,{"$f":"+AV1+1","v":2},{"$f":"+AW1+1","v":3},4,5,6,{"$f":"+BA1+1","v":7},{"$f":"+BB1+1","v":8},{"$f":"+BC1+1","v":9},{"$f":"+BD1+1","v":10},{"$f":"+BE1+1","v":11},{"$f":"+BF1+1","v":12},{"$f":"+BG1+1","v":13},{"$f":"+BH1+1","v":14},{"$f":"+BI1+1","v":15},{"$f":"+BJ1+1","v":16},{"$f":"+BK1+1","v":17},{"$f":"+BL1+1","v":18},{"$f":"+BM1+1","v":19},{"$f":"+BN1+1","v":20},{"$f":"+BO1+1","v":21},{"$f":"+BP1+1","v":22},{"$f":"+BQ1+1","v":23},{"$f":"+BR1+1","v":24},{"$f":"+BS1+1","v":25},{"$f":"+BT1+1","v":26},{"$f":"+BU1+1","v":27},{"$f":"+BV1+1","v":28},{"$f":"+BW1+1","v":29},{"$f":"+BX1+1","v":30},{"$f":"+BY1+1","v":31},{"$f":"+BZ1+1","v":32},{"$f":"+CA1+1","v":33},{"$f":"+CB1+1","v":34},{"$f":"+CC1+1","v":35},{"$f":"+CD1+1","v":36},{"$f":"+CE1+1","v":37},{"$f":"+CF1+1","v":38},{"$f":"+CG1+1","v":39},{"$f":"+CH1+1","v":40},{"$f":"+CI1+1","v":41},{"$f":"+CJ1+1","v":42},{"$f":"+CK1+1","v":43},{"$f":"+CL1+1","v":44},{"$f":"+CM1+1","v":45},{"$f":"+CN1+1","v":46},{"$f":"+CO1+1","v":47},{"$f":"+CP1+1","v":48},{"$f":"+CQ1+1","v":49},{"$f":"+CR1+1","v":50},{"$f":"+CS1+1","v":51},{"$f":"+CT1+1","v":52},{"$f":"+CU1+1","v":53},{"$f":"+CV1+1","v":54},{"$f":"+CW1+1","v":55},{"$f":"+CX1+1","v":56},{"$f":"+CY1+1","v":57},{"$f":"+CZ1+1","v":58},{"$f":"+DA1+1","v":59},{"$f":"+DB1+1","v":60},{"$f":"+DC1+1","v":61},{"$f":"+DD1+1","v":62},{"$f":"+DE1+1","v":63},{"$f":"+DF1+1","v":64},{"$f":"+DG1+1","v":65},{"$f":"+DH1+1","v":66},{"$f":"+DI1+1","v":67},{"$f":"+DJ1+1","v":68},{"$f":"+DK1+1","v":69},{"$f":"+DL1+1","v":70},{"$f":"+DM1+1","v":71},{"$f":"+DN1+1","v":72},{"$f":"+DO1+1","v":73},{"$f":"+DP1+1","v":74},{"$f":"+DQ1+1","v":75},{"$f":"+DR1+1","v":76},{"$f":"+DS1+1","v":77},{"$f":"+DT1+1","v":78},{"$f":"+DU1+1","v":79},{"$f":"+DV1+1","v":80},{"$f":"+DW1+1","v":81},{"$f":"+DX1+1","v":82},{"$f":"+DY1+1","v":83},{"$f":"+DZ1+1","v":84},{"$f":"+EA1+1","v":85},{"$f":"+EB1+1","v":86},{"$f":"+EC1+1","v":87},{"$f":"+ED1+1","v":88},{"$f":"+EE1+1","v":89},{"$f":"+EF1+1","v":90},{"$f":"+EG1+1","v":91},{"$f":"+EH1+1","v":92},{"$f":"+EI1+1","v":93},{"$f":"+EJ1+1","v":94},{"$f":"+EK1+1","v":95},{"$f":"+EL1+1","v":96},{"$f":"+EM1+1","v":97},{"$f":"+EN1+1","v":98},{"$f":"+EO1+1","v":99},{"$f":"+EP1+1","v":100},{"$f":"+EQ1+1","v":101},{"$f":"+ER1+1","v":102},{"$f":"+ES1+1","v":103},{"$f":"+ET1+1","v":104},{"$f":"+EU1+1","v":105},{"$f":"+EV1+1","v":106},{"$f":"+EW1+1","v":107},{"$f":"+EX1+1","v":108},{"$f":"+EY1+1","v":109},{"$f":"+EZ1+1","v":110},{"$f":"+FA1+1","v":111},{"$f":"+FB1+1","v":112},{"$f":"+FC1+1","v":113},{"$f":"+FD1+1","v":114},{"$f":"+FE1+1","v":115},{"$f":"+FF1+1","v":116},{"$f":"+FG1+1","v":117},{"$f":"+FH1+1","v":118},{"$f":"+FI1+1","v":119},{"$f":"+FJ1+1","v":120},{"$f":"+FK1+1","v":121},{"$f":"+FL1+1","v":122},{"$f":"+FM1+1","v":123}]
[null,null,null,null,null,null,null,null,null,null,null,null,null,null,null,null,null,null,null,null,null,null,null,null,null,null,null,null,null,null,null,null,null,null,null,null,null,null,null,null,null,null,"English",null,null,null,null,null,null,null,null,null,"Special Levy"]
[null,null,1,"Press arrow for your School Division >","No.",null,"DIVNUM_MUN","MUN","DUE",null,null,null,null,null,null,null,null,null,null,null,null,null,null,null,null,null,null,null,null,null,null,null,null,null,null,null,null,null,null,null,null,null,"French",null,null,null,null,null,null,"Special Levy","Special Levy","Special Levy","Before","Previous Year",null,null,null,"Total"]
["DIVNUM",1,2,"BORDER LAND","BO",{"$f":"COUNTIF($G$4:$G$256,E4)","v":9},"BO","R.M. of De Salaberry","Oct 31",null,"DATENUM",2,2,"Provincial Funding",null,null,null,null,null,null,null,null,{"$f":"+'DATA ENTRY'!F29","v":"REMITTANCE 1"},{"$f":"+'DATA ENTRY'!G29","v":"REMITTANCE 2"},{"$f":"+'DATA ENTRY'!H29","v":"REMITTANCE 3"},{"$f":"+'DATA ENTRY'!I29","v":"REMITTANCE 4"},{"$f":"+'DATA ENTRY'!J29","v":"REMITTANCE 5"},{"$f":"+'DATA ENTRY'!K29","v":"REMITTANCE 6"},{"$f":"+'DATA ENTRY'!L29","v":"REMITTANCE 7"},{"$f":"+'DATA ENTRY'!M29","v":"REMITTANCE 8"},{"$f":"+'DATA ENTRY'!N29","v":"REMITTANCE 9"},{"$f":"+'DATA ENTRY'!O29","v":"REMITTANCE 10"},{"$f":"+'DATA ENTRY'!P29","v":"REMITTANCE 11"},{"$f":"+'DATA ENTRY'!Q29","v":"REMITTANCE 12"},{"$f":"IF(ISERROR(HLOOKUP(AI5,W1:AH5,3,0)=TRUE),0,(HLOOKUP(AI5,W1:AH5,3,0)))","v":0},null,null,null,null,null,null,null,null,null,null,null,null,80,null,"for the SD","for DSFM","Adj for DSFM","TIG & PTOG","TIG ADJ","TIG","PTOG","DSFM PTOG","Special Levy","Municipalities","NO DSFM"]
[null,null,3,"BRANDON","BR",9,"BO","Municipality of Emerson-Franklin","Oct 31",null,null,null,3,"Jul 31",null,null,null,null,null,null,null,null,{"$f":"+'DATA ENTRY'!F30","v":0},{"$f":"+'DATA ENTRY'!G30","v":0},{"$f":"+'DATA ENTRY'!H30","v":0},{"$f":"+'DATA ENTRY'!I30","v":0},{"$f":"+'DATA ENTRY'!J30","v":0},{"$f":"+'DATA ENTRY'!K30","v":0},{"$f":"+'DATA ENTRY'!L30","v":0},{"$f":"+'DATA ENTRY'!M30","v":0},{"$f":"+'DATA ENTRY'!N30","v":0},{"$f":"+'DATA ENTRY'!O30","v":0},{"$f":"+'DATA ENTRY'!P30","v":0},{"$f":"+'DATA ENTRY'!Q30","v":0},{"$f":"+MAX(AI6:AI31)","v":0},null,null,null,null,1,null,null,null,null,null,null,null,"CO. ","DIVISION/DISTRICT","SPLEVDIV","SPLEVDSFM","SLADJLT","G17","G18","TIGSL2","TOGSL2","TOGDSFM","SPLEVLT",1,{"$f":"+BG5+1","v":2},{"$f":"+BH5+1","v":3},4,5,6,7,8,9,10,11,12,13,14,15,16,17,18,19,20,21,22,23,24,25,26,27,28,29,30,31,32,33,34,35,36,37,38,39,40,41,42,43,44,45,46,47,48,49,50,51,52,53,54,55,1,{"$f":"+DJ5+1","v":2},{"$f":"+DK5+1","v":3},4,5,6,7,8,9,10,11,12,13,14,15,16,17,18,19,20,21,22,23,{"$f":"+EF5+1","v":24},25,26,27,28,29,30,31,32,33,34,35,36,37,38,39,40,41,42,43,44,45,46,47,48,49,50,51,52,53,54,55,"Ratios Page","PTOG DIV ",null,"DSFM","Control"]
["DIVNUM2",{"$f":"VLOOKUP(B4,C1:E55,3)","v":"No."},4,"FORT LA BOSSE","FO",7,"BO","R.M. of La Broquerie","Sep 30",null,"DATENUM2",{"$f":"IF(OR(DATENUM=1,DATENUM=2),\"\",VLOOKUP(L4,M1:N6,2))","v":""},4,"Oct 31",null,null,null,null,null,6,null,{"$f":"+'DATA ENTRY'!A31","v":0},{"$f":"IF('DATA ENTRY'!F31=\"\",0,1)","v":0},{"$f":"IF('DATA ENTRY'!G31=\"\",0,2)","v":0},{"$f":"IF('DATA ENTRY'!H31=\"\",0,3)","v":0},{"$f":"IF('DATA ENTRY'!I31=\"\",0,4)","v":0},{"$f":"IF('DATA ENTRY'!J31=\"\",0,AA1)","v":0},{"$f":"IF('DATA ENTRY'!K31=\"\",0,AB1)","v":0},{"$f":"IF('DATA ENTRY'!L31=\"\",0,AC1)","v":0},{"$f":"IF('DATA ENTRY'!M31=\"\",0,AD1)","v":0},{"$f":"IF('DATA ENTRY'!N31=\"\",0,AE1)","v":0},{"$f":"IF('DATA ENTRY'!O31=\"\",0,AF1)","v":0},{"$f":"IF('DATA ENTRY'!P31=\"\",0,AG1)","v":0},{"$f":"IF('DATA ENTRY'!Q31=\"\",0,AH1)","v":0},{"$f":"MAX(W6:AH6)","v":0},{"$f":"HLOOKUP($AI$5,'DATA ENTRY'!$F$16:$Q$56,T6,0)","v":{"$error":"#N/A"}},{"$f":"+V6","v":0},null,null,{"$f":"+AN5+1","v":2},null,null,null,null,null,null,null,null,null,null,null,null,null,null,null,null,null,null,null,null,null,null,null,null,null,null,null,null,null,null,null,null,null,null,null,null,null,null,null,null,null,null,null,null,null,null,null,null,null,null,null,null,null,null,null,null,null,null,null,null,null,null,null,null,null,null,null,null,null,null,null,null,null,null,null,null,null,null,null,null,null,null,null,null,null,null,null,null,null,null,null,null,null,null,null,null,null,null,null,null,null,null,null,null,null,null,null,null,null,null,null,null,null,null,null,null,null,null,null,null,null,null,null,null,null,null,null,null,null,null,null,null,null,null,null,null,null,null,"TOTAL Sp. Levy - L"]
[null,null,5,"HANOVER","HA",9,"BO","R.M. of Montcalm","Oct 31",null,null,null,null,null,null,null,null,null,null,{"$f":"+T6+1","v":7},null,{"$f":"+'DATA ENTRY'!A32","v":0},{"$f":"IF('DATA ENTRY'!F32=\"\",0,1)","v":0},{"$f":"IF('DATA ENTRY'!G32=\"\",0,2)","v":0},{"$f":"IF('DATA ENTRY'!H32=\"\",0,3)","v":0},{"$f":"IF('DATA ENTRY'!I32=\"\",0,4)","v":0},{"$f":"IF('DATA ENTRY'!J32=\"\",0,AA1)","v":0},{"$f":"IF('DATA ENTRY'!K32=\"\",0,AB1)","v":0},{"$f":"IF('DATA ENTRY'!L32=\"\",0,AC1)","v":0},{"$f":"IF('DATA ENTRY'!M32=\"\",0,AD1)","v":0},{"$f":"IF('DATA ENTRY'!N32=\"\",0,AE1)","v":0},{"$f":"IF('DATA ENTRY'!O32=\"\",0,AF1)","v":0},{"$f":"IF('DATA ENTRY'!P32=\"\",0,AG1)","v":0},{"$f":"IF('DATA ENTRY'!Q32=\"\",0,AH1)","v":0},0,{"$f":"IF(HLOOKUP($AI$5,'DATA ENTRY'!$F$16:$Q$56,T7,0)=\"\",0,HLOOKUP($AI$5,'DATA ENTRY'!$F$16:$Q$56,T7,0))","v":{"$error":"#N/A"}},{"$f":"+V7","v":0},null,null,{"$f":"+AN6+1","v":3},null,null,"Important !!!!!!!!!:\nBefore post the form 2, we have to send the ratios for the current year to the TAX Office - Carlene Yachiw so they can send the right amount to the Divisions, for the split between the Divisions share and DSFM.",null,null,null,"W/O","BE","BEAUTIFUL PLAINS",null,null,null,10150397,null,252166,393770,null,9504461,"RM OF ELTON (124)","MUNICIPALITY OF GLENELLA-LANSDOWNE (142)","MUNICIPALITY OF NORTH CYPRESS-LANGFORD (155)","MUNICIPALITY OF NORTH NORFOLK (156)","RM OF MINTO-ODANAH (159)","RM OF ROSEDALE (170)","MUNICIPALITY OF GLENBORO-SOUTH CYPRESS (187)","RM OF VICTORIA (197)","TOWN OF CARBERRY (407)","TOWN OF NEEPAWA (437)",0,0,0,0,0,0,0,0,0,0,0,0,0,null,null,null,null,null,null,null,null,null,null,null,null,null,null,null,null,null,null,null,null,null,null,null,null,null,null,null,null,null,null,null,null,145332,683255,4855063,7367,66206,1012105,6657,2788,783715,1941974,0,0,0,0,0,0,0,0,0,0,0,0,null,null,null,null,null,null,null,null,null,null,null,null,null,null,null,null,null,null,null,null,null,null,null,null,null,null,null,null,null,null,null,null,null,{"$f":"+BF7-SUM(DJ7:FL7)","v":-1},194935.59999999963,{"$f":"+AV7","v":"BE"},"No DSFM",{"$f":"IF(AND(FM7=0,FP7=\"No DSFM\"),0,AY7-SUM(DJ7:EF7))","v":-9504462},{"$f":"+AY7-SUM(DJ7:EF7)","v":-9504462},{"$f":"+AV7","v":"BE"},null,null,null,{"$f":"SUM(AY7:AY42)","v":36649655}]
[null,null,6,"LOUIS RIEL","LR",{"$f":"COUNTIF($G$4:$G$256,E8)","v":3},"BO","R.M. of Morris","Oct 29",null,"DATE_ON_OFF",2,null,null,null,null,null,null,null,{"$f":"+T7+1","v":8},1,{"$f":"+'DATA ENTRY'!A33","v":""},{"$f":"IF('DATA ENTRY'!F33=\"\",0,1)","v":0},{"$f":"IF('DATA ENTRY'!G33=\"\",0,2)","v":0},{"$f":"IF('DATA ENTRY'!H33=\"\",0,3)","v":0},{"$f":"IF('DATA ENTRY'!I33=\"\",0,4)","v":0},{"$f":"IF('DATA ENTRY'!J33=\"\",0,AA1)","v":0},{"$f":"IF('DATA ENTRY'!K33=\"\",0,AB1)","v":0},{"$f":"IF('DATA ENTRY'!L33=\"\",0,AC1)","v":0},{"$f":"IF('DATA ENTRY'!M33=\"\",0,AD1)","v":0},{"$f":"IF('DATA ENTRY'!N33=\"\",0,AE1)","v":0},{"$f":"IF('DATA ENTRY'!O33=\"\",0,AF1)","v":0},{"$f":"IF('DATA ENTRY'!P33=\"\",0,AG1)","v":0},{"$f":"IF('DATA ENTRY'!Q33=\"\",0,AH1)","v":0},0,{"$f":"HLOOKUP($AI$5,'DATA ENTRY'!$F$16:$Q$56,T8,0)","v":{"$error":"#N/A"}},"",null,null,4,null,null,null,null,null,null,null,"BO","BORDER LAND",18432267,115937,-228,18547976,0,2575999,717568.49069963186,22995.629418635974,15231412.879881732,"RM OF DE SALABERRY (119)","MUNICIPALITY OF EMERSON-FRANKLIN (127)","RM OF LA BROQUERIE (138)","RM OF MONTCALM (151)","RM OF MORRIS (152)","MUNICIPALITY OF RHINELAND (164)","TOWN OF ALTONA (400)","RM OF PINEY (610)","RM OF STUARTBURN (612)",0,0,0,0,0,0,0,0,0,0,0,0,0,0,null,null,null,null,null,null,null,null,null,null,null,null,null,null,null,null,null,null,null,null,null,null,null,null,null,null,null,null,null,null,null,null,280516,2968582,176639,1883875,54767,5239129,2761695,958721,907489,0,0,0,0,0,0,0,0,0,0,0,0,0,null,null,null,null,null,null,null,null,null,null,null,null,null,null,null,null,null,null,null,null,null,null,null,null,null,null,null,null,null,null,null,null,null,{"$f":"+BF8-SUM(DJ8:FL8)","v":-0.12011826783418655},356148.65069963038,"BO",null,-15115476,-15115476,"BO"]
[null,null,7,"MYSTERY LAKE","MY",1,"BO","Municipality of Rhineland","Oct 29",null,null,null,null,null,null,null,null,null,null,9,{"$f":"+U8+1","v":2},{"$f":"+'DATA ENTRY'!A34","v":""},{"$f":"IF('DATA ENTRY'!F34=\"\",0,1)","v":0},{"$f":"IF('DATA ENTRY'!G34=\"\",0,2)","v":0},{"$f":"IF('DATA ENTRY'!H34=\"\",0,3)","v":0},{"$f":"IF('DATA ENTRY'!I34=\"\",0,4)","v":0},{"$f":"IF('DATA ENTRY'!J34=\"\",0,AA1)","v":0},{"$f":"IF('DATA ENTRY'!K34=\"\",0,AB1)","v":0},{"$f":"IF('DATA ENTRY'!L34=\"\",0,AC1)","v":0},{"$f":"IF('DATA ENTRY'!M34=\"\",0,AD1)","v":0},{"$f":"IF('DATA ENTRY'!N34=\"\",0,AE1)","v":0},{"$f":"IF('DATA ENTRY'!O34=\"\",0,AF1)","v":0},{"$f":"IF('DATA ENTRY'!P34=\"\",0,AG1)","v":0},{"$f":"IF('DATA ENTRY'!Q34=\"\",0,AH1)","v":0},0,{"$f":"HLOOKUP($AI$5,'DATA ENTRY'!$F$16:$Q$56,T9,0)","v":{"$error":"#N/A"}},"",null,null,5,null,null,null,null,null,null,null,"BR","BRANDON",50605155,764714,28,51369897,0,924007,1460877.7471594785,-54356.961356585147,49039369.214197107,"RM OF CORNWALLIS (116)","RM OF ELTON (124)","MUNICIPALITY OF NORTH CYPRESS-LANGFORD (155)","MUNICIPALITY OF OAKLAND-WAWANESA (157)","MUNICIPALITY OF GLENBORO-SOUTH CYPRESS (187)","RM OF WHITEHEAD (202)","RIVERDALE MUNICIPALITY (443)","MUNICIPALITY OF SOURIS-GLENWOOD (449)","CITY OF BRANDON (500)",0,0,0,0,0,0,0,0,0,0,0,0,0,0,null,null,null,null,null,null,null,null,null,null,null,null,null,null,null,null,null,null,null,null,null,null,null,null,null,null,null,null,null,null,null,null,2807215,413563,1286713,406844,495018,1863142,118262,1374,41647239,0,0,0,0,0,0,0,0,0,0,0,0,0,null,null,null,null,null,null,null,null,null,null,null,null,null,null,null,null,null,null,null,null,null,null,null,null,null,null,null,null,null,null,null,null,null,-0.78580289334058762,468740.16715948284,"BR",null,-48274656,-48274656,"BR"]
[null,null,8,"PARK WEST","PA",10,"BO","Town of Altona","Jul 30",null,null,null,null,null,null,null,null,null,null,10,{"$f":"+U9+1","v":3},{"$f":"+'DATA ENTRY'!A35","v":""},{"$f":"IF('DATA ENTRY'!F35=\"\",0,1)","v":0},{"$f":"IF('DATA ENTRY'!G35=\"\",0,2)","v":0},{"$f":"IF('DATA ENTRY'!H35=\"\",0,3)","v":0},{"$f":"IF('DATA ENTRY'!I35=\"\",0,4)","v":0},{"$f":"IF('DATA ENTRY'!J35=\"\",0,AA1)","v":0},{"$f":"IF('DATA ENTRY'!K35=\"\",0,AB1)","v":0},{"$f":"IF('DATA ENTRY'!L35=\"\",0,AC1)","v":0},{"$f":"IF('DATA ENTRY'!M35=\"\",0,AD1)","v":0},{"$f":"IF('DATA ENTRY'!N35=\"\",0,AE1)","v":0},{"$f":"IF('DATA ENTRY'!O35=\"\",0,AF1)","v":0},{"$f":"IF('DATA ENTRY'!P35=\"\",0,AG1)","v":0},{"$f":"IF('DATA ENTRY'!Q35=\"\",0,AH1)","v":0},0,{"$f":"HLOOKUP($AI$5,'DATA ENTRY'!$F$16:$Q$56,T10,0)","v":{"$error":"#N/A"}},"",null,null,6,null,null,null,null,null,null,null,"DI","D.S.F.M.",null,null,null,null,null,null,null,null,null,0,0,0,0,0,0,0,0,0,0,0,0,0,0,0,0,0,0,0,0,0,0,0,null,null,null,null,null,null,null,null,null,null,null,null,null,null,null,null,null,null,null,null,null,null,null,null,null,null,null,null,null,null,null,null,0,0,0,0,0,0,0,0,0,0,0,0,0,0,0,0,0,0,0,0,0,0,null,null,null,null,null,null,null,null,null,null,null,null,null,null,null,null,null,null,null,null,null,null,null,null,null,null,null,null,null,null,null,null,null,0,0,"DI","No DSFM",0,0,"DI",null,"Sum of ratios page + control (*)",null,{"$f":"+FW7-FU13","v":1095862242.1944458}]
[null,null,9,"PEMBINA TRAILS","PE",3,"BO","R.M. of Piney","Oct 29",null,null,null,null,null,null,null,null,null,null,11,4,{"$f":"+'DATA ENTRY'!A36","v":""},{"$f":"IF('DATA ENTRY'!F36=\"\",0,1)","v":0},{"$f":"IF('DATA ENTRY'!G36=\"\",0,2)","v":0},{"$f":"IF('DATA ENTRY'!H36=\"\",0,3)","v":0},{"$f":"IF('DATA ENTRY'!I36=\"\",0,4)","v":0},{"$f":"IF('DATA ENTRY'!J36=\"\",0,AA1)","v":0},{"$f":"IF('DATA ENTRY'!K36=\"\",0,AB1)","v":0},{"$f":"IF('DATA ENTRY'!L36=\"\",0,AC1)","v":0},{"$f":"IF('DATA ENTRY'!M36=\"\",0,AD1)","v":0},{"$f":"IF('DATA ENTRY'!N36=\"\",0,AE1)","v":0},{"$f":"IF('DATA ENTRY'!O36=\"\",0,AF1)","v":0},{"$f":"IF('DATA ENTRY'!P36=\"\",0,AG1)","v":0},{"$f":"IF('DATA ENTRY'!Q36=\"\",0,AH1)","v":0},0,{"$f":"HLOOKUP($AI$5,'DATA ENTRY'!$F$16:$Q$56,T11,0)","v":{"$error":"#N/A"}},"",null,null,7,null,null,null,null,null,null,"W/O","EV","EVERGREEN",null,null,null,13559278,null,1501499,526523.03999999911,null,11531255.960000001,"MUNICIPALITY OF BIFROST-RIVERTON (105)","RM OF GIMLI (129)","RM OF ROCKWOOD (168)","RM OF ST. ANDREWS (174)","TOWN OF ARBORG (300)","VILLAGE OF DUNNOTTAR (311)","TOWN OF WINNIPEG BEACH (465)","RM OF ARMSTRONG (602)","RM OF FISHER (605)",0,0,0,0,0,0,0,0,0,0,0,0,0,0,null,null,null,null,null,null,null,null,null,null,null,null,null,null,null,null,null,null,null,null,null,null,null,null,null,null,null,null,null,null,null,null,2292850,5766741,3966,410941,572769,881108,1057158,544328,1395,0,0,0,0,0,0,0,0,0,0,0,0,0,null,null,null,null,null,null,null,null,null,null,null,null,null,null,null,null,null,null,null,null,null,null,null,null,null,null,null,null,null,null,null,null,null,-3.9999999105930328E-2,260654.53999999911,"EV","No DSFM",-11531256,-11531256,"EV",null,{"$f":"SUM(FM7:FM42)+SUM(FQ7:FQ42)","v":-1054642815.0344459}]
[null,null,10,"PINE CREEK","PI",7,"BO","R.M. of Stuartburn","Oct 29",null,null,null,null,null,null,null,null,null,null,12,5,{"$f":"+'DATA ENTRY'!A37","v":""},{"$f":"IF('DATA ENTRY'!F37=\"\",0,1)","v":0},{"$f":"IF('DATA ENTRY'!G37=\"\",0,2)","v":0},{"$f":"IF('DATA ENTRY'!H37=\"\",0,3)","v":0},{"$f":"IF('DATA ENTRY'!I37=\"\",0,4)","v":0},{"$f":"IF('DATA ENTRY'!J37=\"\",0,AA1)","v":0},{"$f":"IF('DATA ENTRY'!K37=\"\",0,AB1)","v":0},{"$f":"IF('DATA ENTRY'!L37=\"\",0,AC1)","v":0},{"$f":"IF('DATA ENTRY'!M37=\"\",0,AD1)","v":0},{"$f":"IF('DATA ENTRY'!N37=\"\",0,AE1)","v":0},{"$f":"IF('DATA ENTRY'!O37=\"\",0,AF1)","v":0},{"$f":"IF('DATA ENTRY'!P37=\"\",0,AG1)","v":0},{"$f":"IF('DATA ENTRY'!Q37=\"\",0,AH1)","v":0},0,{"$f":"HLOOKUP($AI$5,'DATA ENTRY'!$F$16:$Q$56,T12,0)","v":{"$error":"#N/A"}},"",null,null,8,null,null,null,null,null,null,"W/O","FL","FLIN FLON",null,null,null,5095503,null,376357,149373.84000000078,null,4569772.1599999992,"City of Flin Flon, Municipality",0,0,0,0,0,0,0,0,0,0,0,0,0,0,0,0,0,0,0,0,0,0,null,null,null,null,null,null,null,null,null,null,null,null,null,null,null,null,null,null,null,null,null,null,null,null,null,null,null,null,null,null,null,null,4569772.1599999992,0,0,0,0,0,0,0,0,0,0,0,0,0,0,0,0,0,0,0,0,0,null,null,null,null,null,null,null,null,null,null,null,null,null,null,null,null,null,null,null,null,null,null,null,null,null,null,null,null,null,null,null,null,null,0,49462.299999999814,"FL","No DSFM",0,-4569772.1599999992,"FL","FL",{"$f":"+FR12","v":-4569772.1599999992}]
[null,null,11,"PORTAGE LA PRAIRIE","PO",8,"BR","R.M. of Cornwallis","Sep 30",null,null,null,null,null,null,null,null,null,null,13,6,{"$f":"+'DATA ENTRY'!A38","v":""},{"$f":"IF('DATA ENTRY'!F38=\"\",0,1)","v":0},{"$f":"IF('DATA ENTRY'!G38=\"\",0,2)","v":0},{"$f":"IF('DATA ENTRY'!H38=\"\",0,3)","v":0},{"$f":"IF('DATA ENTRY'!I38=\"\",0,4)","v":0},{"$f":"IF('DATA ENTRY'!J38=\"\",0,AA1)","v":0},{"$f":"IF('DATA ENTRY'!K38=\"\",0,AB1)","v":0},{"$f":"IF('DATA ENTRY'!L38=\"\",0,AC1)","v":0},{"$f":"IF('DATA ENTRY'!M38=\"\",0,AD1)","v":0},{"$f":"IF('DATA ENTRY'!N38=\"\",0,AE1)","v":0},{"$f":"IF('DATA ENTRY'!O38=\"\",0,AF1)","v":0},{"$f":"IF('DATA ENTRY'!P38=\"\",0,AG1)","v":0},{"$f":"IF('DATA ENTRY'!Q38=\"\",0,AH1)","v":0},0,{"$f":"HLOOKUP($AI$5,'DATA ENTRY'!$F$16:$Q$56,T13,0)","v":{"$error":"#N/A"}},"",null,null,9,null,null,null,null,null,null,null,"FO","FORT LA BOSSE",10579666,11618,-95,10591189,0,459100,410968.62805069063,3791.345398638281,9717329.0265506711,"RM OF ELLICE-ARCHIE (101)","MUNICIPALITY OF TWO BORDERS (122)","RM OF PIPESTONE (162)","RM OF SIFTON (184)","RM OF WALLACE-WOODWORTH (199)","RM OF WHITEHEAD (202)","TOWN OF VIRDEN (461)",0,0,0,0,0,0,0,0,0,0,0,0,0,0,0,0,null,null,null,null,null,null,null,null,null,null,null,null,null,null,null,null,null,null,null,null,null,null,null,null,null,null,null,null,null,null,null,null,683633,296388,3588510,827952,2959663,23863,1337320,0,0,0,0,0,0,0,0,0,0,0,0,0,0,0,null,null,null,null,null,null,null,null,null,null,null,null,null,null,null,null,null,null,null,null,null,null,null,null,null,null,null,null,null,null,null,null,null,2.6550671085715294E-2,203524.30805069022,"FO",null,-9705711,-9705711,"FO",null,{"$f":"+FU11+FU12","v":-1059212587.1944458}]
[null,null,12,"PRAIRIE ROSE","PR",16,"BR","R.M. of Elton","Oct 29",null,null,null,null,null,null,null,null,null,null,14,7,{"$f":"+'DATA ENTRY'!A39","v":""},{"$f":"IF('DATA ENTRY'!F39=\"\",0,1)","v":0},{"$f":"IF('DATA ENTRY'!G39=\"\",0,2)","v":0},{"$f":"IF('DATA ENTRY'!H39=\"\",0,3)","v":0},{"$f":"IF('DATA ENTRY'!I39=\"\",0,4)","v":0},{"$f":"IF('DATA ENTRY'!J39=\"\",0,AA1)","v":0},{"$f":"IF('DATA ENTRY'!K39=\"\",0,AB1)","v":0},{"$f":"IF('DATA ENTRY'!L39=\"\",0,AC1)","v":0},{"$f":"IF('DATA ENTRY'!M39=\"\",0,AD1)","v":0},{"$f":"IF('DATA ENTRY'!N39=\"\",0,AE1)","v":0},{"$f":"IF('DATA ENTRY'!O39=\"\",0,AF1)","v":0},{"$f":"IF('DATA ENTRY'!P39=\"\",0,AG1)","v":0},{"$f":"IF('DATA ENTRY'!Q39=\"\",0,AH1)","v":0},0,{"$f":"HLOOKUP($AI$5,'DATA ENTRY'!$F$16:$Q$56,T14,0)","v":{"$error":"#N/A"}},"",null,null,10,null,null,null,null,null,null,"W/O","FR","FRONTIER",null,null,null,3679067,null,159237,105993.35999999987,null,3413836.64,"RM OF LAKESHORE (143)","TOWN OF LEAF RAPIDS (428)","TOWN OF SNOW LAKE (448)","RM OF ALONSA (601)","TOWN OF CHURCHILL (603)","RM OF KELSEY (604)","RM OF GRAHAMDALE (606)","TOWN OF LYNN LAKE (614)","TOWN OF GRAND RAPIDS (615)","RM OF MOUNTAIN (617)","TOWN OF GILLAM (619)","INDIGENOUS AND NORTHERN RELATIONS (700)","INDIGENOUS AND NORTHERN RELATIONS (701)","INDIGENOUS AND NORTHERN RELATIONS (702)","INDIGENOUS AND NORTHERN RELATIONS (703)","INCORPORATED COMMUNITY OF CROSS LAKE (707)","INCORPORATED COMMUNITY OF SEYMOURVILLE (708)","NORWAY HOUSE-NORTHERN AFFAIRS ACT (710)","PIKWITONEI-NORTHERN AFFAIRS ACT (712)","SHERRIDON-NORTHERN AFFAIRS ACT (713)","INCORPORATED COMMUNITY OF SOUTH INDIAN LAKE (714)","THICKET PORTAGE-NORTHERN AFFAIRS ACT (715)","WABOWDEN-NORTHERN AFFAIRS ACT (716)","CRANE RIVER-NORTHERN AFFAIRS ACT (727)","MALLARD-NORTHERN AFFAIRS ACT (728)","MEADOW PORTAGE-NORTHERN AFFAIRS ACT (729)","SALT POINT-NORTHERN AFFAIRS ACT (731)","SPENCE LAKE-NORTHERN AFFAIRS ACT (732)","WATERHEN-NORTHERN AFFAIRS ACT (733)","BROCHET-NORTHERN AFFAIRS ACT (734)","EASTERVILLE-NORTHERN AFFAIRS ACT (736)","HERB LAKE LANDING-NORTHERN AFFAIRS ACT (738)","ILFORD-NORTHERN AFFAIRS ACT (739)","AGHAMING-NORTHERN AFFAIRS ACT (741)","BERENS RIVER-NORTHERN AFFAIRS ACT (744)","BISSETT-NORTHERN AFFAIRS ACT (746)","DALLAS-RED ROSE-NORTHERN AFFAIRS ACT (747)","DAUPHIN RIVER-NORTHERN AFFAIRS ACT (748)","FISHER BAY-NORTHERN AFFAIRS ACT (750)","HOMEBROOK - PEONAN POINT-NORTHERN AFFAIRS ACT (754)","LOON STRAITS-NORTHERN AFFAIRS ACT (761)","MANIGOTAGAN-NORTHERN AFFAIRS ACT (762)","MATHESON ISLAND-NORTHERN AFFAIRS ACT (763)","PINE DOCK-NORTHERN AFFAIRS ACT (765)","PRINCESS HARBOUR-NORTHERN AFFAIRS ACT (766)","BADEN-NORTHERN AFFAIRS ACT (781)","BARROWS-NORTHERN AFFAIRS ACT (782)","CAMPERVILLE-NORTHERN AFFAIRS ACT (783)","CORMORANT-NORTHERN AFFAIRS ACT (784)","DAWSON BAY-NORTHERN AFFAIRS ACT (785)","DUCK BAY-NORTHERN AFFAIRS ACT (786)","MOOSE LAKE-NORTHERN AFFAIRS ACT (787)","NATIONAL MILLS-NORTHERN AFFAIRS ACT (788)","PELICAN RAPIDS-NORTHERN AFFAIRS ACT (789)","RED DEER LAKE-NORTHERN AFFAIRS ACT (792)",285102,41196,584375,27178,527603,300574,159253,62516,181751,23044,113770,2063,86262,2096,6077,60742,10395,99926,11791,23138,5826,13657,84931,18374,7599,53414,1147,33282,50163,14811,5648,250,3452,1773,13852,117023,24171,3372,6459,13070,8589,122778,55216,23737,2239,963,6095,42215,27152,4032,24484,6679,1221,5832,1479,-0.35999999986961484,33854.419999999925,"FR","No DSFM",-2713266,-2713266,"FR"]
[null,null,13,"PRAIRIE SPIRIT","PS",14,"BR","Municipality of North Cypress-Langford","Sep 30",null,null,null,null,null,null,null,null,null,null,15,8,{"$f":"+'DATA ENTRY'!A40","v":""},{"$f":"IF('DATA ENTRY'!F40=\"\",0,1)","v":0},{"$f":"IF('DATA ENTRY'!G40=\"\",0,2)","v":0},{"$f":"IF('DATA ENTRY'!H40=\"\",0,3)","v":0},{"$f":"IF('DATA ENTRY'!I40=\"\",0,4)","v":0},{"$f":"IF('DATA ENTRY'!J40=\"\",0,AA1)","v":0},{"$f":"IF('DATA ENTRY'!K40=\"\",0,AB1)","v":0},{"$f":"IF('DATA ENTRY'!L40=\"\",0,AC1)","v":0},{"$f":"IF('DATA ENTRY'!M40=\"\",0,AD1)","v":0},{"$f":"IF('DATA ENTRY'!N40=\"\",0,AE1)","v":0},{"$f":"IF('DATA ENTRY'!O40=\"\",0,AF1)","v":0},{"$f":"IF('DATA ENTRY'!P40=\"\",0,AG1)","v":0},{"$f":"IF('DATA ENTRY'!Q40=\"\",0,AH1)","v":0},0,{"$f":"HLOOKUP($AI$5,'DATA ENTRY'!$F$16:$Q$56,T15,0)","v":{"$error":"#N/A"}},"",null,null,11,null,null,null,null,null,null,"W/O","GA","GARDEN VALLEY",null,null,null,21362606,null,323087,829487.6400000006,null,20210031.359999999,"MUNICIPALITY OF RHINELAND (164)","RM OF ROLAND (169)","RM OF STANLEY (190)","CITY OF WINKLER (463)",0,0,0,0,0,0,0,0,0,0,0,0,0,0,0,0,0,0,0,null,null,null,null,null,null,null,null,null,null,null,null,null,null,null,null,null,null,null,null,null,null,null,null,null,null,null,null,null,null,null,null,2705639,368812,6079279,11056301,0,0,0,0,0,0,0,0,0,0,0,0,0,0,0,0,0,0,null,null,null,null,null,null,null,null,null,null,null,null,null,null,null,null,null,null,null,null,null,null,null,null,null,null,null,null,null,null,null,null,null,0.35999999940395355,410613.6799999997,"GA","No DSFM",-20210031,-20210031,"GA"]
[null,null,14,"RED RIVER VALLEY","RE",12,"BR","Municipality of Oakland-Wawanesa","Oct 31",null,null,null,null,null,null,null,null,null,null,16,9,{"$f":"+'DATA ENTRY'!A41","v":""},{"$f":"IF('DATA ENTRY'!F41=\"\",0,1)","v":0},{"$f":"IF('DATA ENTRY'!G41=\"\",0,2)","v":0},{"$f":"IF('DATA ENTRY'!H41=\"\",0,3)","v":0},{"$f":"IF('DATA ENTRY'!I41=\"\",0,4)","v":0},{"$f":"IF('DATA ENTRY'!J41=\"\",0,AA1)","v":0},{"$f":"IF('DATA ENTRY'!K41=\"\",0,AB1)","v":0},{"$f":"IF('DATA ENTRY'!L41=\"\",0,AC1)","v":0},{"$f":"IF('DATA ENTRY'!M41=\"\",0,AD1)","v":0},{"$f":"IF('DATA ENTRY'!N41=\"\",0,AE1)","v":0},{"$f":"IF('DATA ENTRY'!O41=\"\",0,AF1)","v":0},{"$f":"IF('DATA ENTRY'!P41=\"\",0,AG1)","v":0},{"$f":"IF('DATA ENTRY'!Q41=\"\",0,AH1)","v":0},0,{"$f":"HLOOKUP($AI$5,'DATA ENTRY'!$F$16:$Q$56,T16,0)","v":{"$error":"#N/A"}},"",null,null,12,null,null,null,null,null,null,null,"HA","HANOVER",37129602,443359,132,37573093,0,754063,1443517.5867266254,111609.0546381874,35263903.358635187,"RM OF DE SALABERRY (119)","MUNICIPALITY OF EMERSON-FRANKLIN (127)","RM OF HANOVER (135)","RM OF LA BROQUERIE (138)","RM OF RITCHOT (165)","RM OF STE. ANNE (175)","RM OF TACHE (194)","TOWN OF NIVERVILLE (340)","CITY OF STEINBACH (451)",0,0,0,0,0,0,0,0,0,0,0,0,0,0,null,null,null,null,null,null,null,null,null,null,null,null,null,null,null,null,null,null,null,null,null,null,null,null,null,null,null,null,null,null,null,null,381790,2091,11500017,1360716,606964,1325120,2155491,3870214,14061502,0,0,0,0,0,0,0,0,0,0,0,0,0,null,null,null,null,null,null,null,null,null,null,null,null,null,null,null,null,null,null,null,null,null,null,null,null,null,null,null,null,null,null,null,null,null,-1.6413648128509521,720486.20672663301,"HA",null,-34820546,-34820546,"HA"]
[null,null,15,"RIVER EAST TRANSCONA","RI",3,"BR","Municipality of Glenboro-South Cypress","Oct 29",null,null,null,null,null,null,null,null,null,null,17,10,{"$f":"+'DATA ENTRY'!A42","v":""},{"$f":"IF('DATA ENTRY'!F42=\"\",0,1)","v":0},{"$f":"IF('DATA ENTRY'!G42=\"\",0,2)","v":0},{"$f":"IF('DATA ENTRY'!H42=\"\",0,3)","v":0},{"$f":"IF('DATA ENTRY'!I42=\"\",0,4)","v":0},{"$f":"IF('DATA ENTRY'!J42=\"\",0,AA1)","v":0},{"$f":"IF('DATA ENTRY'!K42=\"\",0,AB1)","v":0},{"$f":"IF('DATA ENTRY'!L42=\"\",0,AC1)","v":0},{"$f":"IF('DATA ENTRY'!M42=\"\",0,AD1)","v":0},{"$f":"IF('DATA ENTRY'!N42=\"\",0,AE1)","v":0},{"$f":"IF('DATA ENTRY'!O42=\"\",0,AF1)","v":0},{"$f":"IF('DATA ENTRY'!P42=\"\",0,AG1)","v":0},{"$f":"IF('DATA ENTRY'!Q42=\"\",0,AH1)","v":0},0,{"$f":"HLOOKUP($AI$5,'DATA ENTRY'!$F$16:$Q$56,T17,0)","v":{"$error":"#N/A"}},"",null,null,null,null,null,null,null,null,null,null,"IN","INTERLAKE",21772439,0,0,21772439,0,808470,845450.53999999911,0,20118518.460000001,"RM OF ROCKWOOD (168)","RM OF ROSSER (172)","RM OF ST. ANDREWS (174)","RM OF ST. LAURENT (178)","RM OF WEST ST. PAUL (201)","RM OF WOODLANDS (206)","TOWN OF TEULON (363)","TOWN OF STONEWALL (453)","CITY OF WINNIPEG (590)","RM OF ARMSTRONG (602)",0,0,0,0,0,0,0,0,0,0,0,0,0,null,null,null,null,null,null,null,null,null,null,null,null,null,null,null,null,null,null,null,null,null,null,null,null,null,null,null,null,null,null,null,null,6466183,5726894,197002,1337,312608,3171759,605469,3476421,41568,119277,0,0,0,0,0,0,0,0,0,0,0,0,null,null,null,null,null,null,null,null,null,null,null,null,null,null,null,null,null,null,null,null,null,null,null,null,null,null,null,null,null,null,null,null,null,0.46000000089406967,418539.57999999821,"IN","No DSFM",-20118518,-20118518,"IN"]
[null,null,16,"ROLLING RIVER","RO",9,"BR","R.M. of Whitehead","Oct 31",null,null,null,null,null,null,null,null,null,null,18,11,{"$f":"+'DATA ENTRY'!A43","v":""},{"$f":"IF('DATA ENTRY'!F43=\"\",0,1)","v":0},{"$f":"IF('DATA ENTRY'!G43=\"\",0,2)","v":0},{"$f":"IF('DATA ENTRY'!H43=\"\",0,3)","v":0},{"$f":"IF('DATA ENTRY'!I43=\"\",0,4)","v":0},{"$f":"IF('DATA ENTRY'!J43=\"\",0,AA1)","v":0},{"$f":"IF('DATA ENTRY'!K43=\"\",0,AB1)","v":0},{"$f":"IF('DATA ENTRY'!L43=\"\",0,AC1)","v":0},{"$f":"IF('DATA ENTRY'!M43=\"\",0,AD1)","v":0},{"$f":"IF('DATA ENTRY'!N43=\"\",0,AE1)","v":0},{"$f":"IF('DATA ENTRY'!O43=\"\",0,AF1)","v":0},{"$f":"IF('DATA ENTRY'!P43=\"\",0,AG1)","v":0},{"$f":"IF('DATA ENTRY'!Q43=\"\",0,AH1)","v":0},0,{"$f":"HLOOKUP($AI$5,'DATA ENTRY'!$F$16:$Q$56,T18,0)","v":{"$error":"#N/A"}},"",null,null,null,null,null,null,null,null,null,null,"KE","KELSEY",4782792,0,0,4782792,0,154704,623997.8599999994,0,4004090.1400000006,"TOWN OF THE PAS (457)","RM OF KELSEY (604)",0,0,0,0,0,0,0,0,0,0,0,0,0,0,0,0,0,0,0,0,0,null,null,null,null,null,null,null,null,null,null,null,null,null,null,null,null,null,null,null,null,null,null,null,null,null,null,null,null,null,null,null,null,2863039,1141051,0,0,0,0,0,0,0,0,0,0,0,0,0,0,0,0,0,0,0,0,null,null,null,null,null,null,null,null,null,null,null,null,null,null,null,null,null,null,null,null,null,null,null,null,null,null,null,null,null,null,null,null,null,0.14000000059604645,530217.6799999997,"KE",null,-4004090,-4004090,"KE"]
[null,null,17,"SEINE RIVER","SE",10,"BR","Riverdale Municipality","Sep 30",null,null,null,null,null,null,null,null,null,null,19,12,{"$f":"+'DATA ENTRY'!A44","v":""},{"$f":"IF('DATA ENTRY'!F44=\"\",0,1)","v":0},{"$f":"IF('DATA ENTRY'!G44=\"\",0,2)","v":0},{"$f":"IF('DATA ENTRY'!H44=\"\",0,3)","v":0},{"$f":"IF('DATA ENTRY'!I44=\"\",0,4)","v":0},{"$f":"IF('DATA ENTRY'!J44=\"\",0,AA1)","v":0},{"$f":"IF('DATA ENTRY'!K44=\"\",0,AB1)","v":0},{"$f":"IF('DATA ENTRY'!L44=\"\",0,AC1)","v":0},{"$f":"IF('DATA ENTRY'!M44=\"\",0,AD1)","v":0},{"$f":"IF('DATA ENTRY'!N44=\"\",0,AE1)","v":0},{"$f":"IF('DATA ENTRY'!O44=\"\",0,AF1)","v":0},{"$f":"IF('DATA ENTRY'!P44=\"\",0,AG1)","v":0},{"$f":"IF('DATA ENTRY'!Q44=\"\",0,AH1)","v":0},0,{"$f":"HLOOKUP($AI$5,'DATA ENTRY'!$F$16:$Q$56,T19,0)","v":{"$error":"#N/A"}},"",null,null,null,null,null,null,null,null,null,null,"LA","LAKESHORE",5677411,0,0,5677411,0,414194,220289,null,5042928,"MUNICIPALITY OF BIFROST-RIVERTON (105)","RM OF COLDWELL (115)","RM OF ROCKWOOD (168)","RM OF ST. LAURENT (178)","MUNICIPALITY OF WEST INTERLAKE (185)","RM OF ARMSTRONG (602)","RM OF FISHER (605)","RM OF GRAHAMDALE (606)",0,0,0,0,0,0,0,0,0,0,0,0,0,0,0,null,null,null,null,null,null,null,null,null,null,null,null,null,null,null,null,null,null,null,null,null,null,null,null,null,null,null,null,null,null,null,null,32935,918775,8509,3550,1369798,469672,1370887,868802,0,0,0,0,0,0,0,0,0,0,0,0,0,0,null,null,null,null,null,null,null,null,null,null,null,null,null,null,null,null,null,null,null,null,null,null,null,null,null,null,null,null,null,null,null,null,null,0,109054,"LA",null,-5042928,-5042928,"LA"]
[null,null,18,"SEVEN OAKS","SO",3,"BR","Municipality of Souris-Glenwood","Oct 31",null,null,null,null,null,null,null,null,null,null,20,13,{"$f":"+'DATA ENTRY'!A45","v":""},{"$f":"IF('DATA ENTRY'!F45=\"\",0,1)","v":0},{"$f":"IF('DATA ENTRY'!G45=\"\",0,2)","v":0},{"$f":"IF('DATA ENTRY'!H45=\"\",0,3)","v":0},{"$f":"IF('DATA ENTRY'!I45=\"\",0,4)","v":0},{"$f":"IF('DATA ENTRY'!J45=\"\",0,AA1)","v":0},{"$f":"IF('DATA ENTRY'!K45=\"\",0,AB1)","v":0},{"$f":"IF('DATA ENTRY'!L45=\"\",0,AC1)","v":0},{"$f":"IF('DATA ENTRY'!M45=\"\",0,AD1)","v":0},{"$f":"IF('DATA ENTRY'!N45=\"\",0,AE1)","v":0},{"$f":"IF('DATA ENTRY'!O45=\"\",0,AF1)","v":0},{"$f":"IF('DATA ENTRY'!P45=\"\",0,AG1)","v":0},{"$f":"IF('DATA ENTRY'!Q45=\"\",0,AH1)","v":0},0,{"$f":"HLOOKUP($AI$5,'DATA ENTRY'!$F$16:$Q$56,T20,0)","v":{"$error":"#N/A"}},"",null,null,null,null,null,null,null,null,null,null,"LO","LORD SELKIRK",35396801,0,0,35396801,0,2534539,1374501.6000000015,0,31487760.399999999,"RM OF BROKENHEAD (110)","RM OF ST. ANDREWS (174)","RM OF ST. CLEMENTS (176)","RM OF VICTORIA BEACH (198)","CITY OF SELKIRK (447)","RM OF ALEXANDER (600)",0,0,0,0,0,0,0,0,0,0,0,0,0,0,0,0,0,null,null,null,null,null,null,null,null,null,null,null,null,null,null,null,null,null,null,null,null,null,null,null,null,null,null,null,null,null,null,null,null,78403,10857271,7947798,2051486,7882827,2669976,0,0,0,0,0,0,0,0,0,0,0,0,0,0,0,0,null,null,null,null,null,null,null,null,null,null,null,null,null,null,null,null,null,null,null,null,null,null,null,null,null,null,null,null,null,null,null,null,null,-0.60000000149011612,680446.60000000149,"LO",null,-31487761,-31487761,"LO"]
[null,null,19,"SOUTHWEST HORIZON","SR",13,"BR","City of Brandon","Jun 30",null,null,null,null,null,null,null,null,null,null,21,14,{"$f":"+'DATA ENTRY'!A46","v":""},{"$f":"IF('DATA ENTRY'!F46=\"\",0,1)","v":0},{"$f":"IF('DATA ENTRY'!G46=\"\",0,2)","v":0},{"$f":"IF('DATA ENTRY'!H46=\"\",0,3)","v":0},{"$f":"IF('DATA ENTRY'!I46=\"\",0,4)","v":0},{"$f":"IF('DATA ENTRY'!J46=\"\",0,AA1)","v":0},{"$f":"IF('DATA ENTRY'!K46=\"\",0,AB1)","v":0},{"$f":"IF('DATA ENTRY'!L46=\"\",0,AC1)","v":0},{"$f":"IF('DATA ENTRY'!M46=\"\",0,AD1)","v":0},{"$f":"IF('DATA ENTRY'!N46=\"\",0,AE1)","v":0},{"$f":"IF('DATA ENTRY'!O46=\"\",0,AF1)","v":0},{"$f":"IF('DATA ENTRY'!P46=\"\",0,AG1)","v":0},{"$f":"IF('DATA ENTRY'!Q46=\"\",0,AH1)","v":0},0,{"$f":"HLOOKUP($AI$5,'DATA ENTRY'!$F$16:$Q$56,T21,0)","v":{"$error":"#N/A"}},"",null,null,null,null,null,null,null,null,null,null,"LR","LOUIS RIEL",108565071,12866508,154,121431733,0,3270502,4457595.1695026699,-293677.50414148904,113997313.33463882,"RM OF RITCHOT (165)","RM OF SPRINGFIELD (189)","CITY OF WINNIPEG (590)",0,0,0,0,0,0,0,0,0,0,0,0,0,0,0,0,0,0,0,0,null,null,null,null,null,null,null,null,null,null,null,null,null,null,null,null,null,null,null,null,null,null,null,null,null,null,null,null,null,null,null,null,265600,382933,113348780,0,0,0,0,0,0,0,0,0,0,0,0,0,0,0,0,0,0,0,null,null,null,null,null,null,null,null,null,null,null,null,null,null,null,null,null,null,null,null,null,null,null,null,null,null,null,null,null,null,null,null,null,0.3346388190984726,2343455.6295026839,"LR",null,-101130805,-101130805,"LR"]
[null,null,20,"ST. JAMES-ASSINIBOIA","ST",2,"FO","Rm of Ellice-Archie","Oct 31",null,null,null,null,null,null,null,null,null,null,22,15,{"$f":"+'DATA ENTRY'!A47","v":""},{"$f":"IF('DATA ENTRY'!F47=\"\",0,1)","v":0},{"$f":"IF('DATA ENTRY'!G47=\"\",0,2)","v":0},{"$f":"IF('DATA ENTRY'!H47=\"\",0,3)","v":0},{"$f":"IF('DATA ENTRY'!I47=\"\",0,4)","v":0},{"$f":"IF('DATA ENTRY'!J47=\"\",0,AA1)","v":0},{"$f":"IF('DATA ENTRY'!K47=\"\",0,AB1)","v":0},{"$f":"IF('DATA ENTRY'!L47=\"\",0,AC1)","v":0},{"$f":"IF('DATA ENTRY'!M47=\"\",0,AD1)","v":0},{"$f":"IF('DATA ENTRY'!N47=\"\",0,AE1)","v":0},{"$f":"IF('DATA ENTRY'!O47=\"\",0,AF1)","v":0},{"$f":"IF('DATA ENTRY'!P47=\"\",0,AG1)","v":0},{"$f":"IF('DATA ENTRY'!Q47=\"\",0,AH1)","v":0},0,{"$f":"HLOOKUP($AI$5,'DATA ENTRY'!$F$16:$Q$56,T22,0)","v":{"$error":"#N/A"}},"",null,null,null,null,null,null,null,null,null,null,"MO","MOUNTAIN VIEW",18519387,0,0,18519387,0,345180,718109.58000000194,0,17456097.419999998,"RM OF DAUPHIN (118)","MUNICIPALITY OF ETHELBERT (126)","GRANDVIEW MUNICIPALITY (132)","RM OF LAKESHORE (143)","MUNICIPALITY OF MCCREARY (147)","RM OF MOSSEY RIVER (154)","RM OF RIDING MOUNTAIN WEST (181)","MUNICIPALITY OF HILLSBURG-ROBLIN-SHELL RIVER (182)","GILBERT PLAINS MUNICIPALITY (323)","CITY OF DAUPHIN (411)","RM OF MOUNTAIN (617)",0,0,0,0,0,0,0,0,0,0,0,0,null,null,null,null,null,null,null,null,null,null,null,null,null,null,null,null,null,null,null,null,null,null,null,null,null,null,null,null,null,null,null,null,2777522,403415,1626136,825490,7299,692979,873970,3411645,1881393,4762287,193960,0,0,0,0,0,0,0,0,0,0,0,null,null,null,null,null,null,null,null,null,null,null,null,null,null,null,null,null,null,null,null,null,null,null,null,null,null,null,null,null,null,null,null,null,1.419999998062849,354984.3200000003,"MO",null,-17456096,-17456096,"MO"]
[null,null,21,"SUNRISE","SU",12,"FO","Municipality of Two Borders","Oct 31",null,null,null,null,null,null,null,null,null,null,23,16,{"$f":"+'DATA ENTRY'!A48","v":""},{"$f":"IF('DATA ENTRY'!F48=\"\",0,1)","v":0},{"$f":"IF('DATA ENTRY'!G48=\"\",0,2)","v":0},{"$f":"IF('DATA ENTRY'!H48=\"\",0,3)","v":0},{"$f":"IF('DATA ENTRY'!I48=\"\",0,4)","v":0},{"$f":"IF('DATA ENTRY'!J48=\"\",0,AA1)","v":0},{"$f":"IF('DATA ENTRY'!K48=\"\",0,AB1)","v":0},{"$f":"IF('DATA ENTRY'!L48=\"\",0,AC1)","v":0},{"$f":"IF('DATA ENTRY'!M48=\"\",0,AD1)","v":0},{"$f":"IF('DATA ENTRY'!N48=\"\",0,AE1)","v":0},{"$f":"IF('DATA ENTRY'!O48=\"\",0,AF1)","v":0},{"$f":"IF('DATA ENTRY'!P48=\"\",0,AG1)","v":0},{"$f":"IF('DATA ENTRY'!Q48=\"\",0,AH1)","v":0},0,{"$f":"HLOOKUP($AI$5,'DATA ENTRY'!$F$16:$Q$56,T23,0)","v":{"$error":"#N/A"}},"",null,null,null,null,null,null,null,null,null,null,"MY","MYSTERY LAKE",9336362,238558,151,9575071,0,543025,185798.3277971893,-59816.694449828879,8906064.3666526396,"City of Thompson",0,0,0,0,0,0,0,0,0,0,0,0,0,0,0,0,0,0,0,0,0,0,null,null,null,null,null,null,null,null,null,null,null,null,null,null,null,null,null,null,null,null,null,null,null,null,null,null,null,null,null,null,null,null,8906064.3666526396,0,0,0,0,0,0,0,0,0,0,0,0,0,0,0,0,0,0,0,0,0,null,null,null,null,null,null,null,null,null,null,null,null,null,null,null,null,null,null,null,null,null,null,null,null,null,null,null,null,null,null,null,null,null,0,111700.20779719017,"MY","ok 1 mun.",-8667506.3666526396,-8667506.3666526396,"MY"]
[null,null,22,"TURTLE RIVER","TR",7,"FO","R.M. of Pipestone","Oct 31",null,null,null,null,null,null,null,null,null,null,24,17,{"$f":"+'DATA ENTRY'!A49","v":""},{"$f":"IF('DATA ENTRY'!F49=\"\",0,1)","v":0},{"$f":"IF('DATA ENTRY'!G49=\"\",0,2)","v":0},{"$f":"IF('DATA ENTRY'!H49=\"\",0,3)","v":0},{"$f":"IF('DATA ENTRY'!I49=\"\",0,4)","v":0},{"$f":"IF('DATA ENTRY'!J49=\"\",0,AA1)","v":0},{"$f":"IF('DATA ENTRY'!K49=\"\",0,AB1)","v":0},{"$f":"IF('DATA ENTRY'!L49=\"\",0,AC1)","v":0},{"$f":"IF('DATA ENTRY'!M49=\"\",0,AD1)","v":0},{"$f":"IF('DATA ENTRY'!N49=\"\",0,AE1)","v":0},{"$f":"IF('DATA ENTRY'!O49=\"\",0,AF1)","v":0},{"$f":"IF('DATA ENTRY'!P49=\"\",0,AG1)","v":0},{"$f":"IF('DATA ENTRY'!Q49=\"\",0,AH1)","v":0},0,{"$f":"HLOOKUP($AI$5,'DATA ENTRY'!$F$16:$Q$56,T24,0)","v":{"$error":"#N/A"}},"",null,null,null,null,null,null,null,null,null,null,"PA","PARK WEST",11236411,264516,-86,11500841,0,769286,442764.50586126698,-64636.55168699054,10353427.045825724,"RM OF ELLICE-ARCHIE (101)","RM OF OAKVIEW (107)","RM OF RIDING MOUNTAIN WEST (181)","RM OF YELLOWHEAD (183)","RM OF WALLACE-WOODWORTH (199)","HAMIOTA MUNICIPALITY (331)","ROSSBURN MUNICIPALITY (353)","PRAIRIE VIEW MUNICIPALITY (403)","MUNICIPALITY OF RUSSELL-BINSCARTH (445)","MUNICIPALITY OF HARRISON PARK (609)",0,0,0,0,0,0,0,0,0,0,0,0,0,null,null,null,null,null,null,null,null,null,null,null,null,null,null,null,null,null,null,null,null,null,null,null,null,null,null,null,null,null,null,null,null,522417,204514,1303705,1562118,327244,1390853,706899,2502608,1548823,284246,0,0,0,0,0,0,0,0,0,0,0,0,null,null,null,null,null,null,null,null,null,null,null,null,null,null,null,null,null,null,null,null,null,null,null,null,null,null,null,null,null,null,null,null,null,4.5825723558664322E-2,222453.42586126737,"PA",null,-10088911,-10088911,"PA"]
[null,null,23,"WINNIPEG","WI",1,"FO","R.M. of Sifton","Oct 31",null,null,null,null,null,null,null,null,null,null,25,18,{"$f":"+'DATA ENTRY'!A50","v":""},{"$f":"IF('DATA ENTRY'!F50=\"\",0,1)","v":0},{"$f":"IF('DATA ENTRY'!G50=\"\",0,2)","v":0},{"$f":"IF('DATA ENTRY'!H50=\"\",0,3)","v":0},{"$f":"IF('DATA ENTRY'!I50=\"\",0,4)","v":0},{"$f":"IF('DATA ENTRY'!J50=\"\",0,AA1)","v":0},{"$f":"IF('DATA ENTRY'!K50=\"\",0,AB1)","v":0},{"$f":"IF('DATA ENTRY'!L50=\"\",0,AC1)","v":0},{"$f":"IF('DATA ENTRY'!M50=\"\",0,AD1)","v":0},{"$f":"IF('DATA ENTRY'!N50=\"\",0,AE1)","v":0},{"$f":"IF('DATA ENTRY'!O50=\"\",0,AF1)","v":0},{"$f":"IF('DATA ENTRY'!P50=\"\",0,AG1)","v":0},{"$f":"IF('DATA ENTRY'!Q50=\"\",0,AH1)","v":0},0,{"$f":"HLOOKUP($AI$5,'DATA ENTRY'!$F$16:$Q$56,T25,0)","v":{"$error":"#N/A"}},"",null,null,null,null,null,null,null,null,null,null,"PE","PEMBINA TRAILS",116293843,1429246,220,117723309,0,2429845,4478525.0939064911,101005.95936977956,110713932.94672373,"RM OF MACDONALD (146)","RM OF HEADINGLEY (208)","CITY OF WINNIPEG (590)",0,0,0,0,0,0,0,0,0,0,0,0,0,0,0,0,0,0,0,0,null,null,null,null,null,null,null,null,null,null,null,null,null,null,null,null,null,null,null,null,null,null,null,null,null,null,null,null,null,null,null,null,5942,634086,110073905,0,0,0,0,0,0,0,0,0,0,0,0,0,0,0,0,0,0,0,null,null,null,null,null,null,null,null,null,null,null,null,null,null,null,null,null,null,null,null,null,null,null,null,null,null,null,null,null,null,null,null,null,-5.3276270627975464E-2,2198253.093906492,"PE",null,-109284687,-109284687,"PE"]
[null,null,null,null,null,null,"FO","R.M. of Wallace-Woodworth","Oct 29",null,null,null,null,null,null,null,null,null,null,26,19,{"$f":"+'DATA ENTRY'!A51","v":""},{"$f":"IF('DATA ENTRY'!F51=\"\",0,1)","v":0},{"$f":"IF('DATA ENTRY'!G51=\"\",0,2)","v":0},{"$f":"IF('DATA ENTRY'!H51=\"\",0,3)","v":0},{"$f":"IF('DATA ENTRY'!I51=\"\",0,4)","v":0},{"$f":"IF('DATA ENTRY'!J51=\"\",0,AA1)","v":0},{"$f":"IF('DATA ENTRY'!K51=\"\",0,AB1)","v":0},{"$f":"IF('DATA ENTRY'!L51=\"\",0,AC1)","v":0},{"$f":"IF('DATA ENTRY'!M51=\"\",0,AD1)","v":0},{"$f":"IF('DATA ENTRY'!N51=\"\",0,AE1)","v":0},{"$f":"IF('DATA ENTRY'!O51=\"\",0,AF1)","v":0},{"$f":"IF('DATA ENTRY'!P51=\"\",0,AG1)","v":0},{"$f":"IF('DATA ENTRY'!Q51=\"\",0,AH1)","v":0},0,{"$f":"HLOOKUP($AI$5,'DATA ENTRY'!$F$16:$Q$56,T26,0)","v":{"$error":"#N/A"}},"",null,null,null,null,null,null,null,null,null,null,"PI","PINE CREEK",8394079,31613,-125,8425567,0,312678,326251.77749388205,15376.138047264831,7771261.0844588531,"MUNICIPALITY OF GLENELLA-LANSDOWNE (142)","MUNICIPALITY OF NORTH CYPRESS-LANGFORD (155)","MUNICIPALITY OF NORTH NORFOLK (156)","RM OF PORTAGE LA PRAIRIE (163)","MUNICIPALITY OF NORFOLK TREHERNE (188)","RM OF VICTORIA (197)","MUNICIPALITY OF WESTLAKE-GLADSTONE (200)",0,0,0,0,0,0,0,0,0,0,0,0,0,0,0,0,null,null,null,null,null,null,null,null,null,null,null,null,null,null,null,null,null,null,null,null,null,null,null,null,null,null,null,null,null,null,null,null,281254,104072,4287454,30485,146258,87905,2833833,0,0,0,0,0,0,0,0,0,0,0,0,0,0,0,null,null,null,null,null,null,null,null,null,null,null,null,null,null,null,null,null,null,null,null,null,null,null,null,null,null,null,null,null,null,null,null,null,8.4458853118121624E-2,161662.29749388155,"PI",null,-7739648,-7739648,"PI"]
[null,null,null,null,null,null,"FO","R.M. of Whitehead","Oct 31",null,null,null,null,null,null,null,null,null,null,27,20,{"$f":"+'DATA ENTRY'!A52","v":""},{"$f":"IF('DATA ENTRY'!F52=\"\",0,1)","v":0},{"$f":"IF('DATA ENTRY'!G52=\"\",0,2)","v":0},{"$f":"IF('DATA ENTRY'!H52=\"\",0,3)","v":0},{"$f":"IF('DATA ENTRY'!I52=\"\",0,4)","v":0},{"$f":"IF('DATA ENTRY'!J52=\"\",0,AA1)","v":0},{"$f":"IF('DATA ENTRY'!K52=\"\",0,AB1)","v":0},{"$f":"IF('DATA ENTRY'!L52=\"\",0,AC1)","v":0},{"$f":"IF('DATA ENTRY'!M52=\"\",0,AD1)","v":0},{"$f":"IF('DATA ENTRY'!N52=\"\",0,AE1)","v":0},{"$f":"IF('DATA ENTRY'!O52=\"\",0,AF1)","v":0},{"$f":"IF('DATA ENTRY'!P52=\"\",0,AG1)","v":0},{"$f":"IF('DATA ENTRY'!Q52=\"\",0,AH1)","v":0},0,{"$f":"HLOOKUP($AI$5,'DATA ENTRY'!$F$16:$Q$56,T27,0)","v":{"$error":"#N/A"}},"",null,null,null,null,null,null,null,null,null,null,"PO","PORTAGE LA PRAIRIE",19983084,112844,129,20096057,0,270928,768386.13041715138,9606.8223970402032,19047136.047185808,"RM OF GREY (133)","MUNICIPALITY OF NORTH NORFOLK (156)","RM OF PORTAGE LA PRAIRIE (163)","RM OF ST. FRANCOIS XAVIER (177)","MUNICIPALITY OF NORFOLK TREHERNE (188)","MUNICIPALITY OF WESTLAKE-GLADSTONE (200)","RM OF WOODLANDS (206)","CITY PORTAGE LA PRAIRIE (550)",0,0,0,0,0,0,0,0,0,0,0,0,0,0,0,null,null,null,null,null,null,null,null,null,null,null,null,null,null,null,null,null,null,null,null,null,null,null,null,null,null,null,null,null,null,null,null,11908,85656,10481182,114963,1173,371823,122629,7857802,0,0,0,0,0,0,0,0,0,0,0,0,0,0,null,null,null,null,null,null,null,null,null,null,null,null,null,null,null,null,null,null,null,null,null,null,null,null,null,null,null,null,null,null,null,null,null,4.7185808420181274E-2,376560.65041714907,"PO",null,-18934292,-18934292,"PO"]
[null,null,null,null,null,null,"FO","Town of Virden","Oct 29",null,null,null,null,null,null,null,null,null,null,28,21,{"$f":"+'DATA ENTRY'!A53","v":""},{"$f":"IF('DATA ENTRY'!F53=\"\",0,1)","v":0},{"$f":"IF('DATA ENTRY'!G53=\"\",0,2)","v":0},{"$f":"IF('DATA ENTRY'!H53=\"\",0,3)","v":0},{"$f":"IF('DATA ENTRY'!I53=\"\",0,4)","v":0},{"$f":"IF('DATA ENTRY'!J53=\"\",0,AA1)","v":0},{"$f":"IF('DATA ENTRY'!K53=\"\",0,AB1)","v":0},{"$f":"IF('DATA ENTRY'!L53=\"\",0,AC1)","v":0},{"$f":"IF('DATA ENTRY'!M53=\"\",0,AD1)","v":0},{"$f":"IF('DATA ENTRY'!N53=\"\",0,AE1)","v":0},{"$f":"IF('DATA ENTRY'!O53=\"\",0,AF1)","v":0},{"$f":"IF('DATA ENTRY'!P53=\"\",0,AG1)","v":0},{"$f":"IF('DATA ENTRY'!Q53=\"\",0,AH1)","v":0},0,{"$f":"HLOOKUP($AI$5,'DATA ENTRY'!$F$16:$Q$56,T28,0)","v":{"$error":"#N/A"}},"",null,null,null,null,null,null,null,null,null,null,"PR","PRAIRIE ROSE",18950357,562439,-34,19512762,0,1085297,743288.02266389655,93918.1907028727,17590258.786633231,"RM OF CARTIER (112)","RM OF DUFFERIN (120)","RM OF GREY (133)","MUNICIPALITY OF LORNE (144)","RM OF MACDONALD (146)","RM OF MORRIS (152)","MUNICIPALITY OF PEMBINA (161)","RM OF PORTAGE LA PRAIRIE (163)","RM OF ROLAND (169)","RM OF ST. FRANCOIS XAVIER (177)","RM OF ST. LAURENT (178)","MUNICIPALITY OF NORFOLK TREHERNE (188)","RM OF STANLEY (190)","RM OF THOMPSON (195)","RM OF WOODLANDS (206)","TOWN OF CARMAN (409)",0,0,0,0,0,0,0,null,null,null,null,null,null,null,null,null,null,null,null,null,null,null,null,null,null,null,null,null,null,null,null,null,null,null,null,null,null,null,null,3271900,3622236,2076052,326207,244386,476136,37053,363054,1805793,1415459,898756,1424,3974,1468119,11427,1568283,0,0,0,0,0,0,null,null,null,null,null,null,null,null,null,null,null,null,null,null,null,null,null,null,null,null,null,null,null,null,null,null,null,null,null,null,null,null,null,-0.21336676925420761,372861.02266389504,"PR",null,-17027820,-17027820,"PR"]
[null,null,null,null,null,null,"HA","R.M. of De Salaberry","Oct 31",null,null,null,null,null,null,null,null,null,null,29,22,{"$f":"+'DATA ENTRY'!A54","v":""},{"$f":"IF('DATA ENTRY'!F54=\"\",0,1)","v":0},{"$f":"IF('DATA ENTRY'!G54=\"\",0,2)","v":0},{"$f":"IF('DATA ENTRY'!H54=\"\",0,3)","v":0},{"$f":"IF('DATA ENTRY'!I54=\"\",0,4)","v":0},{"$f":"IF('DATA ENTRY'!J54=\"\",0,AA1)","v":0},{"$f":"IF('DATA ENTRY'!K54=\"\",0,AB1)","v":0},{"$f":"IF('DATA ENTRY'!L54=\"\",0,AC1)","v":0},{"$f":"IF('DATA ENTRY'!M54=\"\",0,AD1)","v":0},{"$f":"IF('DATA ENTRY'!N54=\"\",0,AE1)","v":0},{"$f":"IF('DATA ENTRY'!O54=\"\",0,AF1)","v":0},{"$f":"IF('DATA ENTRY'!P54=\"\",0,AG1)","v":0},{"$f":"IF('DATA ENTRY'!Q54=\"\",0,AH1)","v":0},0,{"$f":"HLOOKUP($AI$5,'DATA ENTRY'!$F$16:$Q$56,T29,0)","v":{"$error":"#N/A"}},"",null,null,null,null,null,null,null,null,null,null,"PS","PRAIRIE SPIRIT",15129002,1584593,115,16713710,0,841411,617314.39191261586,63070.745897215791,15191913.862190168,"RM OF ARGYLE (102)","RM OF DUFFERIN (120)","RM OF GREY (133)","MUNICIPALITY OF LORNE (144)","MUNICIPALITY OF LOUISE (145)","MUNICIPALITY OF PEMBINA (161)","RM OF PORTAGE LA PRAIRIE (163)","CARTWRIGHT-ROBLIN MUNICIPALITY (167)","MUNICIPALITY OF GLENBORO-SOUTH CYPRESS (187)","MUNICIPALITY OF NORFOLK TREHERNE (188)","RM OF STANLEY (190)","RM OF PRAIRIE LAKES (192)","RM OF THOMPSON (195)","RM OF VICTORIA (197)",0,0,0,0,0,0,0,0,0,null,null,null,null,null,null,null,null,null,null,null,null,null,null,null,null,null,null,null,null,null,null,null,null,null,null,null,null,null,null,null,null,1106260,96475,887349,3011128,2111225,3097131,38143,777675,1099492,1530473,848,444182,37381,954152,0,0,0,0,0,0,0,0,null,null,null,null,null,null,null,null,null,null,null,null,null,null,null,null,null,null,null,null,null,null,null,null,null,null,null,null,null,null,null,null,null,-0.13780983164906502,320667.37191261724,"PS",null,-13607321,-13607321,"PS"]
[null,null,null,null,null,{"$f":"MAX(F4:F29)","v":16},"HA","Municipality of Emerson-Franklin","Oct 31",null,null,null,null,null,null,null,null,null,null,30,23,{"$f":"+'DATA ENTRY'!A55","v":""},{"$f":"IF('DATA ENTRY'!F55=\"\",0,1)","v":0},{"$f":"IF('DATA ENTRY'!G55=\"\",0,2)","v":0},{"$f":"IF('DATA ENTRY'!H55=\"\",0,3)","v":0},{"$f":"IF('DATA ENTRY'!I55=\"\",0,4)","v":0},{"$f":"IF('DATA ENTRY'!J55=\"\",0,AA1)","v":0},{"$f":"IF('DATA ENTRY'!K55=\"\",0,AB1)","v":0},{"$f":"IF('DATA ENTRY'!L55=\"\",0,AC1)","v":0},{"$f":"IF('DATA ENTRY'!M55=\"\",0,AD1)","v":0},{"$f":"IF('DATA ENTRY'!N55=\"\",0,AE1)","v":0},{"$f":"IF('DATA ENTRY'!O55=\"\",0,AF1)","v":0},{"$f":"IF('DATA ENTRY'!P55=\"\",0,AG1)","v":0},{"$f":"IF('DATA ENTRY'!Q55=\"\",0,AH1)","v":0},0,{"$f":"HLOOKUP($AI$5,'DATA ENTRY'!$F$16:$Q$56,T30,0)","v":{"$error":"#N/A"}},"",null,null,null,null,null,null,null,null,null,null,"RE","RED RIVER VALLEY",18898639,4790059,516,23689214,0,818721,813463.26175039075,249226.48083844222,21807803.257411167,"RM OF CARTIER (112)","RM OF DE SALABERRY (119)","RM OF DUFFERIN (120)","MUNICIPALITY OF EMERSON-FRANKLIN (127)","RM OF MACDONALD (146)","RM OF MONTCALM (151)","RM OF MORRIS (152)","MUNICIPALITY OF RHINELAND (164)","RM OF RITCHOT (165)","RM OF ROLAND (169)","VILLAGE ST. PIERRE-JOLYS (357)","TOWN OF MORRIS (435)",0,0,0,0,0,0,0,0,0,0,0,null,null,null,null,null,null,null,null,null,null,null,null,null,null,null,null,null,null,null,null,null,null,null,null,null,null,null,null,null,null,null,null,423609,3338491,27317,134090,9343086,984381,4653177,19231,1169973,68830,523477,1122142,0,0,0,0,0,0,0,0,0,0,null,null,null,null,null,null,null,null,null,null,null,null,null,null,null,null,null,null,null,null,null,null,null,null,null,null,null,null,null,null,null,null,null,-0.7425888329744339,445550.06175038964,"RE",null,-17017745,-17017745,"RE"]
[null,null,null,null,null,null,"HA","R.M. of Hanover","Oct 29",null,null,null,null,null,null,null,null,null,null,31,24,{"$f":"+'DATA ENTRY'!A56","v":0},{"$f":"IF('DATA ENTRY'!F56=\"\",0,1)","v":0},{"$f":"IF('DATA ENTRY'!G56=\"\",0,2)","v":0},{"$f":"IF('DATA ENTRY'!H56=\"\",0,3)","v":0},{"$f":"IF('DATA ENTRY'!I56=\"\",0,4)","v":0},{"$f":"IF('DATA ENTRY'!J56=\"\",0,AA1)","v":0},{"$f":"IF('DATA ENTRY'!K56=\"\",0,AB1)","v":0},{"$f":"IF('DATA ENTRY'!L56=\"\",0,AC1)","v":0},{"$f":"IF('DATA ENTRY'!M56=\"\",0,AD1)","v":0},{"$f":"IF('DATA ENTRY'!N56=\"\",0,AE1)","v":0},{"$f":"IF('DATA ENTRY'!O56=\"\",0,AF1)","v":0},{"$f":"IF('DATA ENTRY'!P56=\"\",0,AG1)","v":0},{"$f":"IF('DATA ENTRY'!Q56=\"\",0,AH1)","v":0},0,{"$f":"HLOOKUP($AI$5,'DATA ENTRY'!$F$16:$Q$56,T31,0)","v":{"$error":"#N/A"}},0,null,null,null,null,null,null,null,null,null,null,"RI","RIVER EAST TRANSCONA",97553371,2044342,-201,99597512,0,745262,3820369.988275297,127564.39050824195,94904315.621216476,"RM OF EAST ST. PAUL (121)","RM OF ST. CLEMENTS (176)","CITY OF WINNIPEG (590)",0,0,0,0,0,0,0,0,0,0,0,0,0,0,0,0,0,0,0,0,null,null,null,null,null,null,null,null,null,null,null,null,null,null,null,null,null,null,null,null,null,null,null,null,null,null,null,null,null,null,null,null,11281958,2325466,81296891,0,0,0,0,0,0,0,0,0,0,0,0,0,0,0,0,0,0,0,null,null,null,null,null,null,null,null,null,null,null,null,null,null,null,null,null,null,null,null,null,null,null,null,null,null,null,null,null,null,null,null,null,0.62121647596359253,1904939.8882752955,"RI",null,-92859973,-92859973,"RI"]
[null,null,null,null,null,null,"HA","R.M. of La Broquerie","Sep 30",null,null,null,null,null,null,null,null,null,null,null,null,null,null,null,null,null,null,null,null,null,null,null,null,null,null,null,null,null,null,null,null,null,null,null,null,null,null,"RO","ROLLING RIVER",13663743,40590,283,13704616,0,718967,528269.79475878272,16950.101847623475,12440429.103393596,"RM OF OAKVIEW (107)","MUNICIPALITY OF CLANWILLIAM-ERICKSON (114)","RM OF CORNWALLIS (116)","RM OF ELTON (124)","RM OF MINTO-ODANAH (159)","RM OF YELLOWHEAD (183)","TOWN OF MINNEDOSA (431)","RIVERDALE MUNICIPALITY (443)","MUNICIPALITY OF HARRISON PARK (609)",0,0,0,0,0,0,0,0,0,0,0,0,0,0,null,null,null,null,null,null,null,null,null,null,null,null,null,null,null,null,null,null,null,null,null,null,null,null,null,null,null,null,null,null,null,null,2360009,710829,658439,1761577,1612811,71468,1510740,1374518,2380039,0,0,0,0,0,0,0,0,0,0,0,0,0,null,null,null,null,null,null,null,null,null,null,null,null,null,null,null,null,null,null,null,null,null,null,null,null,null,null,null,null,null,null,null,null,null,-0.89660640433430672,261361.27475878224,"RO",null,-12399840,-12399840,"RO"]
[null,null,null,null,null,null,"HA","R.M. of Ritchot","Oct 31",null,null,null,null,null,null,null,null,null,null,null,null,null,null,null,null,null,null,null,null,null,null,null,null,null,null,null,null,null,null,null,null,null,null,null,null,null,null,"SE","SEINE RIVER",25131337,6735853,272,31867462,0,1289547,1095330.2417701073,457039.65972474962,29025545.098505143,"RM OF LA BROQUERIE (138)","RM OF MACDONALD (146)","RM OF RITCHOT (165)","RM OF STE. ANNE (175)","RM OF SPRINGFIELD (189)","RM OF TACHE (194)","TOWN OF STE. ANNE (351)","CITY OF WINNIPEG (590)","RM OF PINEY (610)","RM OF REYNOLDS (611)",0,0,0,0,0,0,0,0,0,0,0,0,0,null,null,null,null,null,null,null,null,null,null,null,null,null,null,null,null,null,null,null,null,null,null,null,null,null,null,null,null,null,null,null,null,2359053,3765314,5568036,3295243,61274,6757158,1375853,4990673,452678,400264,0,0,0,0,0,0,0,0,0,0,0,0,null,null,null,null,null,null,null,null,null,null,null,null,null,null,null,null,null,null,null,null,null,null,null,null,null,null,null,null,null,null,null,null,null,-0.90149485692381859,603528.50177010894,"SE",null,-22289693,-22289693,"SE"]
[null,null,null,null,null,null,"HA","R.M. of Ste. Anne","Oct 29",null,null,null,null,null,null,null,null,null,null,null,null,null,null,null,null,null,null,null,null,null,null,null,null,null,null,null,null,null,null,null,null,null,null,null,null,null,null,"SO","SEVEN OAKS",66334378,275872,-126,66610124,0,2681917,2579141.5995347584,111286.63134518173,61237778.76912006,"RM OF ST. ANDREWS (174)","RM OF WEST ST. PAUL (201)","CITY OF WINNIPEG (590)",0,0,0,0,0,0,0,0,0,0,0,0,0,0,0,0,0,0,0,0,null,null,null,null,null,null,null,null,null,null,null,null,null,null,null,null,null,null,null,null,null,null,null,null,null,null,null,null,null,null,null,null,444041,8501540,52292198,0,0,0,0,0,0,0,0,0,0,0,0,0,0,0,0,0,0,0,null,null,null,null,null,null,null,null,null,null,null,null,null,null,null,null,null,null,null,null,null,null,null,null,null,null,null,null,null,null,null,null,null,-0.23087994009256363,1278109.2795347571,"SO",null,-60961907,-60961907,"SO"]
[null,null,null,null,null,null,"HA","R.M. of Tache","Nov 1",null,null,null,null,null,null,null,null,null,null,null,null,null,null,null,null,null,null,null,null,null,null,null,null,null,null,null,null,null,null,null,null,null,null,null,null,null,null,"SR","SOUTHWEST HORIZON",14939848,30121,-360,14969609,0,713853,599198.49418739928,684.66254032263532,13655872.843272278,"MUNICIPALITY OF BRENDA-WASKADA (109)","MUNICIPALITY OF GRASSLAND (111)","RM OF CORNWALLIS (116)","MUNICIPALITY OF TWO BORDERS (122)","MUNICIPALITY OF BOISSEVAIN-MORTON (153)","MUNICIPALITY OF OAKLAND-WAWANESA (157)","RM OF SIFTON (184)","MUNICIPALITY OF GLENBORO-SOUTH CYPRESS (187)","RM OF PRAIRIE LAKES (192)","RM OF WHITEHEAD (202)","MUNICIPALITY OF DELORAINE-WINCHESTER (205)","TOWN OF MELITA (429)","MUNICIPALITY OF SOURIS-GLENWOOD (449)",0,0,0,0,0,0,0,0,0,0,null,null,null,null,null,null,null,null,null,null,null,null,null,null,null,null,null,null,null,null,null,null,null,null,null,null,null,null,null,null,null,null,2507013,1595945,46529,3133242,85375,1468258,273474,267110,117772,205212,1426139,397230,2132574,0,0,0,0,0,0,0,0,0,null,null,null,null,null,null,null,null,null,null,null,null,null,null,null,null,null,null,null,null,null,null,null,null,null,null,null,null,null,null,null,null,null,-0.15672772191464901,306259.87418740056,"SR",null,-13625752,-13625752,"SR"]
[null,null,null,null,null,null,"HA","Town of Niverville","Sep 30",null,null,null,null,null,null,null,null,null,null,null,null,null,null,null,null,null,null,null,null,null,null,null,null,null,null,null,null,null,null,null,null,null,null,null,null,null,null,"ST","ST. JAMES-ASSINIBOIA",70152835,778660,120,70931615,0,1772637,2748400.3952022982,-19919.264506806154,66430496.869304508,"RM OF HEADINGLEY (208)","CITY OF WINNIPEG (590)",0,0,0,0,0,0,0,0,0,0,0,0,0,0,0,0,0,0,0,0,0,null,null,null,null,null,null,null,null,null,null,null,null,null,null,null,null,null,null,null,null,null,null,null,null,null,null,null,null,null,null,null,null,6638396,59792101,0,0,0,0,0,0,0,0,0,0,0,0,0,0,0,0,0,0,0,0,null,null,null,null,null,null,null,null,null,null,null,null,null,null,null,null,null,null,null,null,null,null,null,null,null,null,null,null,null,null,null,null,null,-0.13069549202919006,1373753.7352022827,"ST",null,-65651837,-65651837,"ST"]
[null,null,null,null,null,null,"HA","City of Steinbach","Sep 30",null,null,null,null,null,null,null,null,null,null,null,null,null,null,null,null,null,null,null,null,null,null,null,null,null,null,null,null,null,null,null,null,null,null,null,null,null,null,"SU","SUNRISE",40976091,651572,291,41627954,0,1489849,1605244.2630189876,-13283.697024307679,38546144.43400532,"RM OF BROKENHEAD (110)","RM OF LAC DU BONNET (139)","RM OF RITCHOT (165)","RM OF ST. CLEMENTS (176)","RM OF SPRINGFIELD (189)","RM OF TACHE (194)","RM OF WHITEMOUTH (203)","TOWN OF LAC DU BONNET (333)","TOWN POWERVIEW-PINEFALLS (347)","TOWN OF BEAUSEJOUR (401)","RM OF ALEXANDER (600)","RM OF REYNOLDS (611)",0,0,0,0,0,0,0,0,0,0,0,null,null,null,null,null,null,null,null,null,null,null,null,null,null,null,null,null,null,null,null,null,null,null,null,null,null,null,null,null,null,null,null,4607095,5527337,147782,874740,18230752,411496,1098545,805850,396858,2260867,2702494,1482328,0,0,0,0,0,0,0,0,0,0,null,null,null,null,null,null,null,null,null,null,null,null,null,null,null,null,null,null,null,null,null,null,null,null,null,null,null,null,null,null,null,null,null,0.43400532007217407,801282.92301899195,"SU",null,-37894572,-37894572,"SU"]
[null,null,null,null,null,null,"KE","Town of The Pas","Aug 31",null,null,null,null,null,null,null,null,null,null,null,null,null,null,null,null,null,null,null,null,null,null,null,null,null,null,null,null,null,null,null,null,null,null,null,null,null,"W/O","SW","SWAN VALLEY",null,null,null,9505127,null,994366,469095.75999999978,null,8041665.2400000002,"MUNICIPALITY OF MINITONAS-BOWSMAN (149)","MUNICIPALITY OF SWAN VALLEY WEST (193)","TOWN OF SWAN RIVER (455)","RM OF MOUNTAIN (617)",0,0,0,0,0,0,0,0,0,0,0,0,0,0,0,0,0,0,0,null,null,null,null,null,null,null,null,null,null,null,null,null,null,null,null,null,null,null,null,null,null,null,null,null,null,null,null,null,null,null,null,2047435,3224469,2359290,410472,0,0,0,0,0,0,0,0,0,0,0,0,0,0,0,0,0,0,null,null,null,null,null,null,null,null,null,null,null,null,null,null,null,null,null,null,null,null,null,null,null,null,null,null,null,null,null,null,null,null,null,-0.75999999977648258,282719.6799999997,"SW","No DSFM",-8041666,-8041666,"SW"]
[null,null,null,null,null,null,"KE","R.M. of Kelsey","Nov 1",null,null,null,null,null,null,null,null,null,null,null,null,null,null,null,null,null,null,null,null,null,null,null,null,null,null,null,null,null,null,null,null,null,null,null,null,null,"W/O","TM","TURTLE MOUNTAIN",null,null,null,7835953,0,0,304280,null,7531673,"RM OF ARGYLE (102)","MUNICIPALITY OF GRASSLAND (111)","MUNICIPALITY OF BOISSEVAIN-MORTON (153)","CARTWRIGHT-ROBLIN MUNICIPALITY (167)","RM OF PRAIRIE LAKES (192)","KILLARNEY-TURTLE MOUNTAIN (196)",0,0,0,0,0,0,0,0,0,0,0,0,0,0,0,0,0,null,null,null,null,null,null,null,null,null,null,null,null,null,null,null,null,null,null,null,null,null,null,null,null,null,null,null,null,null,null,null,null,72876,519292,2280814,142200,1271769,3244722,0,0,0,0,0,0,0,0,0,0,0,0,0,0,0,0,null,null,null,null,null,null,null,null,null,null,null,null,null,null,null,null,null,null,null,null,null,null,null,null,null,null,null,null,null,null,null,null,null,0,150633.5,"TM","No DSFM",0,-7531673,"TM"]
[null,null,null,null,null,null,"LA","Municipality of Bifrost-Riverton","Sep 30",null,null,null,null,null,null,null,null,null,null,null,null,null,null,null,null,null,null,null,null,null,null,null,null,null,null,null,null,null,null,null,null,null,null,null,null,null,null,"TR","TURTLE RIVER",4080785,144717,136,4225638,0,271971,213861.84052173962,23091.992180904548,3716713.1672973558,"MUNICIPALITY OF GLENELLA-LANSDOWNE (142)","RM OF LAKESHORE (143)","MUNICIPALITY OF MCCREARY (147)","RM OF ROSEDALE (170)","MUNICIPALITY OF WESTLAKE-GLADSTONE (200)","MUNICIPALITY OF STE. ROSE (359)","RM OF ALONSA (601)",0,0,0,0,0,0,0,0,0,0,0,0,0,0,0,0,null,null,null,null,null,null,null,null,null,null,null,null,null,null,null,null,null,null,null,null,null,null,null,null,null,null,null,null,null,null,null,null,522536,169937,668157,322415,25405,1080510,927753,0,0,0,0,0,0,0,0,0,0,0,0,0,0,0,null,null,null,null,null,null,null,null,null,null,null,null,null,null,null,null,null,null,null,null,null,null,null,null,null,null,null,null,null,null,null,null,null,0.1672973558306694,133845.0205217395,"TR",null,-3571996,-3571996,"TR"]
[null,null,null,null,null,null,"LA","R.M. of Coldwell","Sep 30",null,null,null,null,null,null,null,null,null,null,null,null,null,null,null,null,null,null,null,null,null,null,null,null,null,null,null,null,null,null,null,null,null,null,null,null,null,"W/O","WE","WESTERN",null,null,null,9909568,0,0,384800.61999999918,null,9524767.3800000008,"MUNICIPALITY OF PEMBINA (161)","RM OF ROLAND (169)","RM OF STANLEY (190)","RM OF THOMPSON (195)","CITY OF MORDEN (433)",0,0,0,0,0,0,0,0,0,0,0,0,0,0,0,0,0,0,null,null,null,null,null,null,null,null,null,null,null,null,null,null,null,null,null,null,null,null,null,null,null,null,null,null,null,null,null,null,null,null,186455,72021,2553897,198432,6513962,0,0,0,0,0,0,0,0,0,0,0,0,0,0,0,0,0,null,null,null,null,null,null,null,null,null,null,null,null,null,null,null,null,null,null,null,null,null,null,null,null,null,null,null,null,null,null,null,null,null,0.38000000081956387,190495.25999999978,"WE","No DSFM",-9524767,-9524767,"WE"]
[null,null,null,null,null,null,"LA","R.M. of Rockwood","Oct 29",null,null,null,null,null,null,null,null,null,null,null,null,null,null,null,null,null,null,null,null,null,null,null,null,null,null,null,null,null,null,null,null,null,null,null,null,null,null,"WI","WINNIPEG",207491626,2731924,-134,210223416,0,4790198,8158463.5343914405,205555.04736848921,197069199.41824007,"City of Winnipeg",0,0,0,0,0,0,0,0,0,0,0,0,0,0,0,0,0,0,0,0,0,0,null,null,null,null,null,null,null,null,null,null,null,null,null,null,null,null,null,null,null,null,null,null,null,null,null,null,null,null,null,null,null,null,197069199.41824007,0,0,0,0,0,0,0,0,0,0,0,0,0,0,0,0,0,0,0,0,0,null,null,null,null,null,null,null,null,null,null,null,null,null,null,null,null,null,null,null,null,null,null,null,null,null,null,null,null,null,null,null,null,null,0,4119042.5943914354,"WI","ok 1 mun.",-194337275.41824007,-194337275.41824007,"WI"]
[null,null,null,null,null,null,"LA","R.M. of St. Laurent","Oct 31"]
[null,null,null,null,null,null,"LA","Municipality of West Interlake","Oct 31"]
[null,null,null,null,null,null,"LA","R.M. of Armstrong","Oct 31",null,null,null,null,null,null,null,null,null,null,null,null,null,null,null,null,null,null,null,null,null,null,null,null,null,null,null,null,null,null,null,null,null,null,null,null,null,null,{"$f":"IF(DIVNUM=1,0,VLOOKUP(DIVNUM2,$AV$7:$FL$42,AV1))","v":0},0,0,0,0,0,0,0,0,0,0,0,0,0,0,0,0,0,0,0,0,0,0,0,0,0,0,0,0,0,0,0,{"$f":"IF(DIVNUM=1,0,VLOOKUP(DIVNUM2,$AV$7:$FL$42,CB1))","v":0},0,0,0,0,0,0,0,0,0,0,0,0,0,0,0,0,0,0,0,0,0,0,0,0,0,0,0,0,0,0,0,{"$f":"IF(DIVNUM=1,0,VLOOKUP(DIVNUM2,$AV$7:$FL$42,DH1))","v":0},0,0,0,0,0,0,0,0,0,0,0,0,0,0,0,0,0,0,0,0,0,0,0,0,0,0,0,0,0,0,0,{"$f":"IF(DIVNUM=1,0,VLOOKUP(DIVNUM2,$AV$7:$FL$42,EN1))","v":0},0,0,0,0,0,0,0,0,0,0,0,0,0,0,0,0,0,0,0,0,0,0,0,0,{"$f":"IF(DIVNUM=1,0,VLOOKUP(DIVNUM2,$AV$7:$FM$42,FM1))","v":0},{"$f":"IF(DIVNUM=1,0,VLOOKUP(DIVNUM2,$AV$7:$FN$42,FN1))","v":0}]
[null,null,null,null,null,null,"LA","R.M. of Fisher","Oct 31",null,null,null,null,null,null,null,null,null,null,null,null,null,null,null,null,null,null,null,null,null,null,null,null,null,null,null,null,null,null,null,null,null,null,null,null,null,null,null,null,null,null,null,null,null,null,null,null,null,{"$f":"+DJ45","v":0},{"$f":"+DK45","v":0},0,0,0,0,0,0,0,0,0,0,0,0,0,0,0,0,0,0,0,0,0,{"$f":"+EG45","v":0},{"$f":"+EH45","v":0},{"$f":"+EI45","v":0},{"$f":"+EJ45","v":0},{"$f":"+EK45","v":0},{"$f":"+EL45","v":0},{"$f":"+EM45","v":0},{"$f":"+EN45","v":0},{"$f":"+EO45","v":0},{"$f":"+EP45","v":0},{"$f":"+EQ45","v":0},{"$f":"+ER45","v":0},{"$f":"+ES45","v":0},{"$f":"+ET45","v":0},{"$f":"+EU45","v":0},{"$f":"+EV45","v":0},{"$f":"+EW45","v":0},{"$f":"+EX45","v":0},{"$f":"+EY45","v":0},{"$f":"+EZ45","v":0},{"$f":"+FA45","v":0},{"$f":"+FB45","v":0},{"$f":"+FC45","v":0},{"$f":"+FD45","v":0},{"$f":"+FE45","v":0},{"$f":"+FF45","v":0},{"$f":"+FG45","v":0},{"$f":"+FH45","v":0},{"$f":"+FI45","v":0},{"$f":"+FJ45","v":0},{"$f":"+FK45","v":0},{"$f":"+FL45","v":0}]
[null,null,null,null,null,null,"LA","R.M. of Grahamdale","Oct 31",null,null,null,null,null,null,null,null,null,null,null,null,null,null,null,null,null,null,null,null,null,null,null,null,null,null,null,null,null,null,null,null,null,null,null,null,null,null,null,null,{"$f":"SUM(AX7:AX42)","v":1070006382},36649655,1158,1187754694,0,37392862,{"$f":"SUM(BD7:BD42)","v":45160272.125602782},1107082.1790575827,1104094477.6953397,null,null,null,null,null,null,null,null,null,null,null,null,null,null,null,null,null,null,null,null,null,null,null,null,null,null,null,null,null,null,null,null,null,null,null,null,null,null,null,null,null,null,null,null,null,null,null,null,null,null,null,null,null,null,null,{"$f":"SUM(DJ7:DJ42)","v":271260951.9448927},124260748,428211784,34180349,54830242,37091268,24024261,32155330,68477480,13011933,5859444,3449369,2260191,2424367,17504,1629025,10395,99926,11791,23138,5826,13657,84931,{"$f":"SUM(EG7:EG42)","v":18374},7599,53414,1147,33282,50163,14811,5648,250,3452,1773,13852,117023,24171,3372,6459,13070,8589,122778,55216,23737,2239,963,6095,42215,27152,4032,24484,6679,1221,5832,1479,-4.2495530671440065,{"$f":"SUM(FN7:FN42)","v":22750797.345602788}]
[null,null,null,null,null,null,"LO","R.M. of Brokenhead","Sep 30",null,null,null,null,null,null,null,null,null,null,null,null,null,null,null,null,null,null,null,null,null,null,null,null,null,null,null,null,null,null,null,null,null,null,null,null,null,null,null,"Splevy22 File Check",null,36649655,1158,1187754694,0,37392862,45160272.125602789,1107082.1790575827,1104094477.6953397]
[null,null,null,null,null,null,"LO","R.M. of St. Andrews","Oct 31"]
[null,null,null,null,null,null,"LO","R.M. of St. Clements","Oct 31"]
[null,null,null,null,null,null,"LO","R.M. of Victoria Beach","Jul 31"]
[null,null,null,null,null,null,"LO","City of Selkirk","Jul 30"]
[null,null,null,null,null,null,"LO","R.M. of Alexander","Sep 1"]
[null,null,null,null,null,null,"LR","R.M. of Ritchot","Oct 31"]
[null,null,null,null,null,null,"LR","R.M. of Springfield","Oct 29"]
[null,null,null,null,null,null,"LR","City of Winnipeg","Jun 30"]
[null,null,null,null,null,null,"MO","R.M. of Dauphin","Oct 29"]
[null,null,null,null,null,null,"MO","Municipality of Ethelbert","Oct 31"]
[null,null,null,null,null,null,"MO","Grandview Municipality","Oct 31"]
[null,null,null,null,null,null,"MO","R.M. of Lakeshore","Oct 31"]
[null,null,null,null,null,null,"MO","Municipality of McCreary","Oct 31"]
[null,null,null,null,null,null,"MO","R.M. of Mossey River","Oct 31"]
[null,null,null,null,null,null,"MO","R.M. of Riding Mountain West","Oct 29"]
[null,null,null,null,null,null,"MO","Municipality of Hillsburg-Roblin-Shell River","Oct 31"]
[null,null,null,null,null,null,"MO","Gilbert Plains Municipality","Sep 30"]
[null,null,null,null,null,null,"MO","City of Dauphin","Jul 30"]
[null,null,null,null,null,null,"MO","R.M. of Mountain","Sep 30"]
[null,null,null,null,null,null,"MY","City of Thompson","Sep 30"]
[null,null,null,null,null,null,"PA","R.M. of Ellice-Archie","Oct 31"]
[null,null,null,null,null,null,"PA","R.M. of Oakview","Oct 29"]
[null,null,null,null,null,null,"PA","R.M. of Riding Mountain West","Oct 29"]
[null,null,null,null,null,null,"PA","R.M. of Yellowhead","Oct 31"]
[null,null,null,null,null,null,"PA","R.M. of Wallace-Woodworth","Oct 29"]
[null,null,null,null,null,null,"PA","Hamiota Municipality","Oct 31"]
[null,null,null,null,null,null,"PA","Rossburn Municipality","Oct 31"]
[null,null,null,null,null,null,"PA","Prairie View Municipality","Oct 29"]
[null,null,null,null,null,null,"PA","Municipality of Russell-Binscarth","Oct 29"]
[null,null,null,null,null,null,"PA","Municipality of Harrison Park","Oct 29"]
[null,null,null,null,null,null,"PE","R.M. of Macdonald","Sep 24"]
[null,null,null,null,null,null,"PE","R.M. of Headingley","Sep 30"]
[null,null,null,null,null,null,"PE","City of Winnipeg","Jun 30"]
[null,null,null,null,null,null,"PI","Municipality of Glenella-Lansdowne","Oct 31"]
[null,null,null,null,null,null,"PI","Municipality of North Cypress-Langford","Sep 30"]
[null,null,null,null,null,null,"PI","Municipality of North Norfolk","Sep 30"]
[null,null,null,null,null,null,"PI","R.M. of Portage La Prairie","Sep 30"]
[null,null,null,null,null,null,"PI","Municipality of Norfolk Treherne","Oct 31"]
[null,null,null,null,null,null,"PI","R.M. of Victoria","Oct 29"]
[null,null,null,null,null,null,"PI","Municipality of Westlake-Gladstone","Oct 29"]
[null,null,null,null,null,null,"PO","R.M. of Grey","Sep 30"]
[null,null,null,null,null,null,"PO","Municipality of North Norfolk","Sep 30"]
[null,null,null,null,null,null,"PO","R.M. of Portage La Prairie","Sep 30"]
[null,null,null,null,null,null,"PO","R.M. of St. Francois Xavier","Sep 30"]
[null,null,null,null,null,null,"PO","Municipality of Norfolk Treherne","Oct 31"]
[null,null,null,null,null,null,"PO","Municipality of Westlake-Gladstone","Oct 29"]
[null,null,null,null,null,null,"PO","R.M. of Woodlands","Oct 31"]
[null,null,null,null,null,null,"PO","City Portage la Prairie","Jul 31"]
[null,null,null,null,null,null,"PR","R.M. of Cartier","Sep 30"]
[null,null,null,null,null,null,"PR","R.M. of Dufferin","Oct 29"]
[null,null,null,null,null,null,"PR","R.M. of Grey","Sep 30"]
[null,null,null,null,null,null,"PR","Municipality of Lorne","Oct 29"]
[null,null,null,null,null,null,"PR","R.M. of Macdonald","Sep 24"]
[null,null,null,null,null,null,"PR","R.M. of Morris","Oct 29"]
[null,null,null,null,null,null,"PR","Municipality of Pembina","Oct 31"]
[null,null,null,null,null,null,"PR","R.M. of Portage La Prairie","Sep 30"]
[null,null,null,null,null,null,"PR","R.M. of Roland","Oct 29"]
[null,null,null,null,null,null,"PR","R.M. of St. Francois Xavier","Sep 30"]
[null,null,null,null,null,null,"PR","R.M. of St. Laurent","Oct 31"]
[null,null,null,null,null,null,"PR","Municipality of Norfolk Treherne","Oct 31"]
[null,null,null,null,null,null,"PR","R.M. of Stanley","Oct 29"]
[null,null,null,null,null,null,"PR","R.M. of Thompson","Sep 30"]
[null,null,null,null,null,null,"PR","R.M. of Woodlands","Oct 31"]
[null,null,null,null,null,null,"PR","Town of Carman","Aug 31"]
[null,null,null,null,null,null,"PS","R.M. of Argyle","Oct 31"]
[null,null,null,null,null,null,"PS","R.M. of Dufferin","Oct 29"]
[null,null,null,null,null,null,"PS","R.M. of Grey","Sep 30"]
[null,null,null,null,null,null,"PS","Municipality of Lorne","Oct 29"]
[null,null,null,null,null,null,"PS","Municipality of Louise","Oct 29"]
[null,null,null,null,null,null,"PS","Municipality of Pembina","Oct 31"]
[null,null,null,null,null,null,"PS","R.M. of Portage La Prairie","Sep 30"]
[null,null,null,null,null,null,"PS","Cartwright-Roblin Municipality","Oct 31"]
[null,null,null,null,null,null,"PS","Municipality of Glenboro-South Cypress","Oct 29"]
[null,null,null,null,null,null,"PS","Municipality of Norfolk Treherne","Oct 31"]
[null,null,null,null,null,null,"PS","R.M. of Stanley","Oct 29"]
[null,null,null,null,null,null,"PS","R.M. of Prairie Lakes","Oct 31"]
[null,null,null,null,null,null,"PS","R.M. of Thompson","Sep 30"]
[null,null,null,null,null,null,"PS","R.M. of Victoria","Oct 29"]
[null,null,null,null,null,null,"RE","R.M. of Cartier","Sep 30"]
[null,null,null,null,null,null,"RE","R.M. of De Salaberry","Oct 31"]
[null,null,null,null,null,null,"RE","R.M. of Dufferin","Oct 29"]
[null,null,null,null,null,null,"RE","Municipality of Emerson-Franklin","Oct 31"]
[null,null,null,null,null,null,"RE","R.M. of Macdonald","Sep 24"]
[null,null,null,null,null,null,"RE","R.M. of Montcalm","Oct 31"]
[null,null,null,null,null,null,"RE","R.M. of Morris","Oct 29"]
[null,null,null,null,null,null,"RE","Municipality of Rhineland","Oct 29"]
[null,null,null,null,null,null,"RE","R.M. of Ritchot","Oct 31"]
[null,null,null,null,null,null,"RE","R.M. of Roland","Oct 29"]
[null,null,null,null,null,null,"RE","Village St. Pierre-Jolys","Oct 31"]
[null,null,null,null,null,null,"RE","Town of Morris","Sep 30"]
[null,null,null,null,null,null,"RI","R.M. of East St. Paul","Sep 30"]
[null,null,null,null,null,null,"RI","R.M. of St. Clements","Oct 31"]
[null,null,null,null,null,null,"RI","City of Winnipeg","Jun 30"]
[null,null,null,null,null,null,"RO","R.M. of Oakview","Oct 29"]
[null,null,null,null,null,null,"RO","Municipality of Clanwilliam-Erickson","Oct 31"]
[null,null,null,null,null,null,"RO","R.M. of Cornwallis","Sep 30"]
[null,null,null,null,null,null,"RO","R.M. of Elton","Oct 29"]
[null,null,null,null,null,null,"RO","R.M. of Minto-Odanah","Oct 29"]
[null,null,null,null,null,null,"RO","R.M. of Yellowhead","Oct 31"]
[null,null,null,null,null,null,"RO","Town of Minnedosa","Sep 30"]
[null,null,null,null,null,null,"RO","Riverdale Municipality","Sep 30"]
[null,null,null,null,null,null,"RO","Municipality of Harrison Park","Oct 29"]
[null,null,null,null,null,null,"SE","R.M. of La Broquerie","Sep 30"]
[null,null,null,null,null,null,"SE","R.M. of Macdonald","Sep 24"]
[null,null,null,null,null,null,"SE","R.M. of Ritchot","Oct 31"]
[null,null,null,null,null,null,"SE","R.M. of Ste. Anne","Oct 29"]
[null,null,null,null,null,null,"SE","R.M. of Springfield","Oct 29"]
[null,null,null,null,null,null,"SE","R.M. of Tache","Nov 1"]
[null,null,null,null,null,null,"SE","Town of Ste. Anne","Jul 30"]
[null,null,null,null,null,null,"SE","City of Winnipeg","Jun 30"]
[null,null,null,null,null,null,"SE","R.M. of Piney","Oct 29"]
[null,null,null,null,null,null,"SE","R.M. of Reynolds","Oct 29"]
[null,null,null,null,null,null,"SO","R.M. of St. Andrews","Oct 31"]
[null,null,null,null,null,null,"SO","R.M. of West St. Paul","Sep 30"]
[null,null,null,null,null,null,"SO","City of Winnipeg","Jun 30"]
[null,null,null,null,null,null,"SR","Municipality of Brenda-Waskada","Oct 31"]
[null,null,null,null,null,null,"SR","Municipality of Grassland","Oct 29"]
[null,null,null,null,null,null,"SR","R.M. of Cornwallis","Sep 30"]
[null,null,null,null,null,null,"SR","Municipality of Two Borders","Oct 31"]
[null,null,null,null,null,null,"SR","Municipality of Boissevain-Morton","Sep 30"]
[null,null,null,null,null,null,"SR","Municipality of Oakland-Wawanesa","Oct 31"]
[null,null,null,null,null,null,"SR","R.M. of Sifton","Oct 31"]
[null,null,null,null,null,null,"SR","Municipality of Glenboro-South Cypress","Oct 29"]
[null,null,null,null,null,null,"SR","R.M. of Prairie Lakes","Oct 31"]
[null,null,null,null,null,null,"SR","R.M. of Whitehead","Oct 31"]
[null,null,null,null,null,null,"SR","Municipality of Deloraine-Winchester","Oct 31"]
[null,null,null,null,null,null,"SR","Town of Melita","Oct 29"]
[null,null,null,null,null,null,"SR","Municipality of Souris-Glenwood","Oct 31"]
[null,null,null,null,null,null,"ST","R.M. of Headingley","Sep 30"]
[null,null,null,null,null,null,"ST","City of Winnipeg","Jun 30"]
[null,null,null,null,null,null,"SU","R.M. of Brokenhead","Sep 30"]
[null,null,null,null,null,null,"SU","R.M. of Lac Du Bonnet","Sep 17"]
[null,null,null,null,null,null,"SU","R.M. of Ritchot","Oct 31"]
[null,null,null,null,null,null,"SU","R.M. of St. Clements","Oct 31"]
[null,null,null,null,null,null,"SU","R.M. of Springfield","Oct 29"]
[null,null,null,null,null,null,"SU","R.M. of Tache","Nov 1"]
[null,null,null,null,null,null,"SU","R.M. of Whitemouth","Oct 29"]
[null,null,null,null,null,null,"SU","Town of Lac du Bonnet","Sep 24"]
[null,null,null,null,null,null,"SU","Town Powerview-Pinefalls","Oct 31"]
[null,null,null,null,null,null,"SU","Town of Beausejour","Aug 31"]
[null,null,null,null,null,null,"SU","R.M. of Alexander","Sep 01"]
[null,null,null,null,null,null,"SU","R.M. of Reynolds","Oct 29"]
[null,null,null,null,null,null,"TR","Municipality of Glenella-Lansdowne","Oct 31"]
[null,null,null,null,null,null,"TR","R.M. of Lakeshore","Oct 31"]
[null,null,null,null,null,null,"TR","Municipality of McCreary","Oct 31"]
[null,null,null,null,null,null,"TR","R.M. of Rosedale","Oct 31"]
[null,null,null,null,null,null,"TR","Municipality of Westlake-Gladstone","Oct 29"]
[null,null,null,null,null,null,"TR","Municipality of Ste. Rose","Oct 31"]
[null,null,null,null,null,null,"TR","R.M. of Alonsa","Oct 31"]
[null,null,null,null,null,null,"WI","City of Winnipeg","Jun 30"]
[]
[]
[]
[]
[]
[]
[]
[]
[]
[]
[]
[]
[]
[]
[]
[]
[]
[]
[]
[]
[]
[]
[]
[]
[]
[]
[]
[]
[]
[]
[]
[]
[]
[]
[]
[]
[]
[]
[]
[]
[]
[]
[]
[]
[]
[]
[]
[]
[]
[]
[]
[]
[]
[]
[]
[]
[]
[]
[]
[]
[]
[null,null,null,null,null,null,"DIVNUM_MUN"]
[null,null,null,null,null,null,"No."]
[null,null,null,null,null,null,null,null,null,null,null,null,null,null,null,null,null,{"$f":"EXACT(S273,L273)","v":true}]
[null,null,null,null,null,null,"DIVNUM_MUN","MUN","DUE",null,null,null,null,null,null,null,{"$f":"SUM(Q264:Q286)","v":0}]
[null,null,null,null,null,1,null,null,null,{"$f":"+Q264","v":0},null,{"$f":"TRIM(LOWER(M264))","v":""},{"$f":"IF(DIVNUM=1,\"\",IF(P264=\"City of Winnipeg\",\"City of Winnipeg\",IF(P264=\"City of Thompson\",\"City of Thompson\",SUBSTITUTE(SUBSTITUTE(P264,N264,\"\"),\".\",\"\"))))","v":""},{"$f":"RIGHT(P264,5)","v":"Z"},1,{"$f":"IF(+$BG$45=0,\"Z\",+$BG$45)","v":"Z"},{"$f":"ROUND(+$BG$46,0)","v":0},{"$f":"IF(ISNA(VLOOKUP(L264,$S$264:$T$287,2,FALSE))=TRUE,\"\",VLOOKUP(L264,$S$264:$T$287,2,FALSE))","v":0},{"$f":"LOWER(SUBSTITUTE(H264,\".\",\"\"))","v":""},{"$f":"+I264","v":"00:00:00"}]
[null,null,null,null,null,2,null,null,null,0,null,{"$f":"TRIM(LOWER(M265))","v":""},{"$f":"SUBSTITUTE(SUBSTITUTE(P265,N265,\"\"),\".\",\"\")","v":""},{"$f":"RIGHT(P265,5)","v":"Z"},2,{"$f":"IF(+$BH$45=0,\"Z\",+$BH$45)","v":"Z"},{"$f":"ROUND(+$BH$46,0)","v":0},{"$f":"IF(ISNA(VLOOKUP(L265,$S$264:$T$287,2,FALSE))=TRUE,\"\",VLOOKUP(L265,$S$264:$T$287,2,FALSE))","v":0},{"$f":"LOWER(SUBSTITUTE(H265,\".\",\"\"))","v":""},{"$f":"+I265","v":"00:00:00"}]
[null,null,null,null,null,3,null,null,null,0,null,"","","Z",3,{"$f":"IF(+$BI$45=0,\"Z\",+$BI$45)","v":"Z"},{"$f":"ROUND(+$BI$46,0)","v":0},0,"","00:00:00"]
[null,null,null,null,null,4,null,null,null,0,null,"","","Z",4,{"$f":"IF(+$BJ$45=0,\"Z\",+$BJ$45)","v":"Z"},{"$f":"ROUND(+$BJ$46,0)","v":0},0,"","00:00:00"]
[null,null,null,null,null,5,null,null,null,0,null,"","","Z",5,{"$f":"IF(+$BK$45=0,\"Z\",+$BK$45)","v":"Z"},{"$f":"ROUND(+$BK$46,0)","v":0},0,"","00:00:00"]
[null,null,null,null,null,6,null,null,null,0,null,"","","Z",6,{"$f":"IF(+$BL$45=0,\"Z\",+$BL$45)","v":"Z"},{"$f":"ROUND(+$BL$46,0)","v":0},0,"","00:00:00"]
[null,null,null,null,null,7,null,null,null,0,null,"","","Z",7,{"$f":"IF(+$BM$45=0,\"Z\",+$BM$45)","v":"Z"},{"$f":"ROUND(+$BM$46,0)","v":0},0,"","00:00:00"]
[null,null,null,null,null,8,null,null,null,0,null,"","","Z",8,{"$f":"IF(+$BN$45=0,\"Z\",+$BN$45)","v":"Z"},{"$f":"ROUND(+$BN$46,0)","v":0},0,"","00:00:00"]
[null,null,null,null,null,9,null,null,null,0,null,"","","Z",9,{"$f":"IF(+$BO$45=0,\"Z\",+$BO$45)","v":"Z"},{"$f":"ROUND(+$BO$46,0)","v":0},0,"","00:00:00"]
[null,null,null,null,null,10,null,null,null,0,null,"","","Z",10,{"$f":"IF(+$BP$45=0,\"Z\",+$BP$45)","v":"Z"},{"$f":"ROUND(+$BP$46,0)","v":0},0,"","00:00:00"]
[null,null,null,null,null,11,null,null,null,0,null,"","","Z",11,{"$f":"IF(+$BQ$45=0,\"Z\",+$BQ$45)","v":"Z"},{"$f":"ROUND(+$BQ$46,0)","v":0},0,"","00:00:00"]
[null,null,null,null,null,12,null,null,null,0,null,"","","Z",12,{"$f":"IF(+$BR$45=0,\"Z\",+$BR$45)","v":"Z"},{"$f":"ROUND(+$BR$46,0)","v":0},0,"","00:00:00"]
[null,null,null,null,null,13,null,null,null,0,null,"","","Z",13,{"$f":"IF(+$BS$45=0,\"Z\",+$BS$45)","v":"Z"},{"$f":"ROUND(+$BS$46,0)","v":0},0,"","00:00:00"]
[null,null,null,null,null,14,null,null,null,0,null,"","","Z",14,{"$f":"IF(+$BT$45=0,\"Z\",+$BT$45)","v":"Z"},{"$f":"ROUND(+$BT$46,0)","v":0},0,"","00:00:00"]
[null,null,null,null,null,15,null,null,null,0,null,"","","Z",15,{"$f":"IF(+$BU$45=0,\"Z\",+$BU$45)","v":"Z"},{"$f":"ROUND(+$BU$46,0)","v":0},0,"","00:00:00"]
[null,null,null,null,null,16,null,null,null,0,null,"","","Z",16,{"$f":"IF(+$BV$45=0,\"Z\",+$BV$45)","v":"Z"},{"$f":"ROUND(+$BV$46,0)","v":0},0,"","00:00:00"]
[null,null,null,null,null,17,null,null,null,{"$f":"+$Q$280","v":0},null,"","","Z",17,{"$f":"IF(+$BW$45=0,\"Z\",+$BW$45)","v":"Z"},{"$f":"ROUND(+$BW$46,0)","v":0},0,"","00:00:00"]
[null,null,null,null,null,18,null,null,null,{"$f":"+$Q$281","v":0},null,"","","Z",18,{"$f":"IF(+$BX$45=0,\"Z\",+$BX$45)","v":"Z"},{"$f":"ROUND(+$BX$46,0)","v":0},0,"","00:00:00"]
[null,null,null,null,null,19,null,null,null,{"$f":"+$Q$282","v":0},null,"","","Z",19,{"$f":"IF(+$BY$45=0,\"Z\",+$BY$45)","v":"Z"},{"$f":"ROUND(+$BY$46,0)","v":0},0,"","00:00:00"]
[null,null,null,null,null,20,null,null,null,{"$f":"+$Q$283","v":0},null,"","","Z",20,{"$f":"IF(+$BZ$45=0,\"Z\",+$BZ$45)","v":"Z"},{"$f":"ROUND(+$BZ$46,0)","v":0},0,"","00:00:00"]
[null,null,null,null,null,21,null,null,null,{"$f":"+$Q$284","v":0},null,"","","Z",21,{"$f":"IF(+$CA$45=0,\"Z\",+$CA$45)","v":"Z"},{"$f":"ROUND(+$CA$46,0)","v":0},0,"","00:00:00"]
[null,null,null,null,null,22,null,null,null,{"$f":"+$Q$285","v":0},null,"","","Z",22,{"$f":"IF(+$CB$45=0,\"Z\",+$CB$45)","v":"Z"},{"$f":"ROUND(+$CB$46,0)","v":0},0,"","00:00:00"]
[null,null,null,null,null,23,null,null,null,{"$f":"+$Q$286","v":0},null,"","","Z",23,{"$f":"IF(+$CC$45=0,\"Z\",+$CC$45)","v":"Z"},{"$f":"ROUND(+$CC$46,0)","v":0},0,"","00:00:00"]
[null,null,null,null,null,null,null,null,null,null,null,null,null,null,null,null,null,null,""]

{"sheet":"User Instructions","index":1,"n_rows":73,"n_cols":5,"rows_kept":73,"cut":false,"hidden":false,"merged":[[29,0,30,0],[61,1,66,4],[55,0,57,0],[61,0,65,0],[0,1,0,4],[10,1,10,4],[2,1,4,4],[29,1,31,4],[27,1,27,4]]}
[null,"WHO SHOULD USE THIS FORM"]
[]
[null,"School Divisions who have la Division scolaire franco-manitobaine (DSFM) pupils residing in their divisions should use this form to calculate DSFM's portion of Special Levy payments received from municipalities."]
[]
[]
[]
[null,"Payment of the calculated amount from this form should be remitted to DSFM within five (5) working days "]
[null,"as set out by the Public School Act Regulation 371/88 Section 3.1(1)."]
[]
[]
[null,"WHAT THIS FORM DOES"]
[]
["1)","This form calculates the percentage of the total Special Levy applicable to DSFM. The percentage calculated "]
[null,"is applied to the Special Levy payments received from municipalities to arrive at the amount owing to  "]
[null,"DSFM for each remittance period."]
[]
[]
["2)","The form can also serve as a working file to monitor all the remittances paid to DSFM per year and to "]
[null,"monitor Special Levy receivable balances from each municipality."]
[]
[]
["3)","Vertical and horizontal checks and balances prevent school division from over remitting to DSFM. "]
[null,"Sum formulas calculate the total amounts to be collected from municipalities and remitted to DSFM. "]
[null,"If an entry exceeds the total sum, an error message appears and blocks the entry.  You may click the cell "]
[null,"to view the formula."]
[]
[]
[null,"HOW TO USE THIS FORM"]
[]
["1)","On the top left hand corner, select your School Division and language. "]
[]
[]
[]
[]
[]
[]
[]
[]
["2)","When a school division is selected, the following fields are automatically filled in and calculated, with the "]
[null,"exception of \"DSFM's share of EPTC, TIG and PTOG (paid by Province)\".  Pre-entered data were"]
[null,"taken from the Calculation of Special Levy page: SL Form 2a of the Budget file."]
[]
[]
[]
[]
[]
[null,""]
[null,null,null,null,"                               "]
[]
[]
[]
["3)","Tax due dates and Total Special Levy by Municipality (gross of Education Property Tax Credit (EPTC)) as "]
[null,"they appeared in the Budget file ratio page, are also automatically filled in when a school division is selected."]
[]
[]
["4)","Enter the gross amount of EPTC by Municipality to determine \"Net Special Levy By Municipality\".  Gross"]
[null,"EPTC by municipality is provided to School Divisions when they receive their EPTC payment (s) from the "]
[null,"Province. The field \"DSFM share of EPTC (paid by Province)\" is also calculated as you enter the gross "]
[null,"amount of EPTC by municipality."]
[]
[]
["5)","Enter payments made by municipalities in the remittance columns.  Selection of the number of remittances is provided to a maximum of 12.  Number of remittances may be increased as needed and remittance dates may be entered on the line provided for reference.  Printing options are also provided; hide and unhide desired remittance column manually, prior to printing.  Remember to select \"French\" for language before printing a copy to send to DSFM."]
[]
[]
[]
[]
[]
[]
[]
[]
[]
[]
["6)","If a total doesn't fit the column, you can adjust the column width."]

{"sheet":"DATA ENTRY","index":2,"n_rows":142,"n_cols":41,"rows_kept":142,"cut":false,"hidden":false,"merged":[[28,18,29,18],[0,0,0,1],[75,0,75,1],[27,0,29,0],[27,2,29,2],[27,3,29,3],[27,1,29,1],[27,4,29,4],[60,0,60,3],[61,0,61,3],[62,0,62,3]]}
[{"$f":"IF(DIVNUM=1,\"\",VLOOKUP(DIVNUM,LOOKUPTABLE,2))","v":""},null,{"$f":"IF(A97=1,C112,C113)","v":"Calculation of Special Levy Remittances to la Division scolaire franco-manitobaine (DSFM)"},null,null,null,null,null,null,null,null,null,null,null,null,null,null,null,null,null,null,null,null,null,0,null,null,null,null,null,null,null,null,null,null,null,null,null,1,{"$f":"IF(DATA!$AI$5=0,1,DATA!$AI$5)","v":1},{"$f":"+AN1-1","v":0}]
[null,null,null,null,null,null,null,null,null,null,null,null,null,null,null,null,null,null,null,null,null,null,null,null,null,null,null,null,null,null,null,null,null,null,null,null,null,null,null,"LETTER"]
[]
[]
[]
[]
[null,null,{"$f":"IF($A$97=1,C106,C107)","v":"YEAR OF LEVY > "},2022]
[]
[null,null,{"$f":"IF($A$97=1,C109,C110)","v":"SPECIAL LEVY BEFORE TIG (line J.) > "},{"$f":"+DATA!$BA$45","v":0},"Select the "]
[null,null,{"$f":"IF($A$97=1,C115,C116)","v":"SPECIAL LEVY FOR DSFM (line H.) > "},{"$f":"+DATA!$AY$45","v":0},"number of"]
[null,null,{"$f":"IF($A$97=1,C128,C129)","v":"ADJUSTMENT FOR DSFM (line I.) >"},{"$f":"+DATA!$AZ$45","v":0},"remittance(s):"]
[]
[null,null,{"$f":"IF($A$97=1,C124,C125)","v":"PERCENTAGE (%) OF TOTAL SPECIAL LEVY APPLICABLE TO DSFM >"},{"$f":"IF(DIVLEVY=0,\"\",ROUND((DSFMLEVY+DSFMADJ)/DIVLEVY,8))","v":""}]
[]
[null,null,{"$f":"IF($A$96=1,C117,C118)","v":"DSFM's share of EPTC (paid by Province)"},{"$f":"IF(D13=\"\",\"\",(+D58*D13))","v":""}]
[null,null,{"$f":"IF($A$97=1,C119,C120)","v":"Part du CIFME de la DSFM (payée par la province)"},{"$f":"+D59*D15","v":{"$error":"#VALUE!"}},4,1,2,3,4,5,6,7,8,9,10,11,12]
[]
[null,null,"TOTAL TIG (line L.)",{"$f":"DATA!BC45","v":0}]
[null,null,"DIVISION share of TIG (paid by Province)",{"$f":"IF(D13=\"\",\"\",D18-D20)","v":""}]
[null,null,{"$f":"IF($A$97=1,C138,C139)","v":"DSFM's share of TIG (paid by Province)"},{"$f":"IF(D13=\"\",\"\",(D18*D13))","v":""},4]
[]
[null,null,"TOTAL PTOG (line M. + line N. which is paid by Province)",{"$f":"DATA!BD45+DATA!BE45","v":0}]
[]
[null,null,"NET SPECIAL LEVY (line O.)",{"$f":"DIVLEVY-D18-D22","v":0}]
[]
[null,null,{"$f":"IF($A$97=1,C135,C136)","v":"NET TO BE PAID TO DSFM"},{"$f":"IF(D15=\"\",\"\",+DSFMLEVY+DSFMADJ-D15-D20)","v":""}]
[]
[{"$f":"IF($A$97=1,A100,A101)","v":"REMITTING AUTHORITY / MUNICIPALITY"},{"$f":"IF($A$97=1,B100,B101)","v":"TAX DUE DATE"},{"$f":"IF($A$97=1,C100,C101)","v":"TOTAL SPECIAL LEVY BY MUNICIPALITY"},{"$f":"IF($A$97=1,D100,D101)","v":"Less: \nGROSS EDUCATION PROPERTY TAX CREDIT"},{"$f":"IF($A$97=1,E100,E101)","v":"NET SPECIAL LEVY BY MUNICIPALITY"},{"$f":"IF($AN$1=F16,IF($A$97=1,\"AMOUNT COLLECTED\",\"MONTANT PERÇU\"),\"\")","v":"AMOUNT COLLECTED"},"","","","","","","","","","",""]
[null,null,null,null,null,{"$f":"IF($A$97=1,F97,F98)","v":"REMITTANCE 1"},{"$f":"IF($A$97=1,G97,G98)","v":"REMITTANCE 2"},"REMITTANCE 3","REMITTANCE 4","REMITTANCE 5","REMITTANCE 6","REMITTANCE 7","REMITTANCE 8","REMITTANCE 9","REMITTANCE 10","REMITTANCE 11","REMITTANCE 12",null,{"$f":"IF($A$97=1,FORM!G31,FORM!G32)","v":"YEAR TO DATE"},{"$f":"IF($A$97=1,A111,A113)","v":"BALANCE TO"}]
[null,null,null,null,null,null,null,null,null,null,null,null,null,null,null,null,null,null,null,{"$f":"IF($A$97=1,A112,A114)","v":"COLLECT"}]
[]
[]
[{"$f":"+DATA!M264","v":""},{"$f":"IF(A33=\"\",\"\",DATA!R264)","v":""},{"$f":"IF(DATA!$FM$45=1,(DATA!$AX$45-DATA!$BA$45-DATA!$FN$45),DATA!$Q$264)","v":0},null,{"$f":"+C33-D33","v":0},null,null,null,null,null,null,null,null,null,null,null,null,null,{"$f":"SUM(MUN_1)","v":0},{"$f":"+HOMEMUN-S33","v":0}]
[{"$f":"+DATA!M265","v":""},{"$f":"IF(A34=\"\",\"\",DATA!R265)","v":""},{"$f":"+DATA!$Q$265","v":0},null,0,null,null,null,null,null,null,null,null,null,null,null,null,null,{"$f":"SUM(MUN_2)","v":0},{"$f":"+E34-S34","v":0}]
[{"$f":"+DATA!M266","v":""},{"$f":"IF(A35=\"\",\"\",DATA!R266)","v":""},{"$f":"+DATA!$Q$266","v":0},null,0,null,null,null,null,null,null,null,null,null,null,null,null,null,{"$f":"SUM(MUN_3)","v":0},0]
[{"$f":"+DATA!M267","v":""},{"$f":"IF(A36=\"\",\"\",DATA!R267)","v":""},{"$f":"+DATA!$Q$267","v":0},null,0,null,null,null,null,null,null,null,null,null,null,null,null,null,{"$f":"SUM(MUN_4)","v":0},0]
[{"$f":"+DATA!M268","v":""},{"$f":"IF(A37=\"\",\"\",DATA!R268)","v":""},{"$f":"+DATA!$Q$268","v":0},null,0,null,null,null,null,null,null,null,null,null,null,null,null,null,{"$f":"SUM(MUN_5)","v":0},0]
[{"$f":"+DATA!M269","v":""},{"$f":"IF(A38=\"\",\"\",DATA!R269)","v":""},{"$f":"+DATA!$Q$269","v":0},null,0,null,null,null,null,null,null,null,null,null,null,null,null,null,{"$f":"SUM(MUN_6)","v":0},0]
[{"$f":"+DATA!M270","v":""},{"$f":"IF(A39=\"\",\"\",DATA!R270)","v":""},{"$f":"+DATA!$Q$270","v":0},null,0,null,null,null,null,null,null,null,null,null,null,null,null,null,{"$f":"SUM(MUN_7)","v":0},0]
[{"$f":"+DATA!M271","v":""},{"$f":"IF(A40=\"\",\"\",DATA!R271)","v":""},{"$f":"+DATA!$Q$271","v":0},null,0,null,null,null,null,null,null,null,null,null,null,null,null,null,{"$f":"SUM(MUN_8)","v":0},0]
[{"$f":"+DATA!M272","v":""},{"$f":"IF(A41=\"\",\"\",DATA!R272)","v":""},{"$f":"+DATA!$Q$272","v":0},null,0,null,null,null,null,null,null,null,null,null,null,null,null,null,{"$f":"SUM(MUN_9)","v":0},0]
[{"$f":"+DATA!M273","v":""},{"$f":"IF(A42=\"\",\"\",DATA!R273)","v":""},{"$f":"+DATA!$Q$273","v":0},null,0,null,null,null,null,null,null,null,null,null,null,null,null,null,{"$f":"SUM(MUN_10)","v":0},0]
[{"$f":"+DATA!M274","v":""},{"$f":"IF(A43=\"\",\"\",DATA!R274)","v":""},{"$f":"+DATA!$Q$274","v":0},null,0,null,null,null,null,null,null,null,null,null,null,null,null,null,{"$f":"SUM(MUN_11)","v":0},0]
[{"$f":"+DATA!M275","v":""},{"$f":"IF(A44=\"\",\"\",DATA!R275)","v":""},{"$f":"+DATA!$Q$275","v":0},null,0,null,null,null,null,null,null,null,null,null,null,null,null,null,{"$f":"SUM(MUN_12)","v":0},0]
[{"$f":"+DATA!M276","v":""},{"$f":"IF(A45=\"\",\"\",DATA!R276)","v":""},{"$f":"+DATA!$Q$276","v":0},null,0,null,null,null,null,null,null,null,null,null,null,null,null,null,{"$f":"SUM(MUN_13)","v":0},0]
[{"$f":"+DATA!M277","v":""},{"$f":"IF(A46=\"\",\"\",DATA!R277)","v":""},{"$f":"+DATA!$Q$277","v":0},null,0,null,null,null,null,null,null,null,null,null,null,null,null,null,{"$f":"SUM(MUN_14)","v":0},0]
[{"$f":"+DATA!M278","v":""},{"$f":"IF(A47=\"\",\"\",DATA!R278)","v":""},{"$f":"+DATA!$Q$278","v":0},null,0,null,null,null,null,null,null,null,null,null,null,null,null,null,{"$f":"SUM(MUN_15)","v":0},0]
[{"$f":"+DATA!M279","v":""},{"$f":"IF(A48=\"\",\"\",DATA!R279)","v":""},{"$f":"+DATA!$Q$279","v":0},null,0,null,null,null,null,null,null,null,null,null,null,null,null,null,{"$f":"SUM(MUN_16)","v":0},0]
[{"$f":"+DATA!M280","v":""},{"$f":"IF(A49=\"\",\"\",DATA!R280)","v":""},{"$f":"+DATA!$Q$280","v":0},null,0,null,null,null,null,null,null,null,null,null,null,null,null,null,{"$f":"SUM(MUN_17)","v":0},0]
[{"$f":"+DATA!M281","v":""},{"$f":"IF(A50=\"\",\"\",DATA!R281)","v":""},{"$f":"+DATA!$Q$281","v":0},null,0,null,null,null,null,null,null,null,null,null,null,null,null,null,{"$f":"SUM(MUN_18)","v":0},0]
[{"$f":"+DATA!M282","v":""},{"$f":"IF(A51=\"\",\"\",DATA!R282)","v":""},{"$f":"+DATA!$Q$282","v":0},null,0,null,null,null,null,null,null,null,null,null,null,null,null,null,{"$f":"SUM(MUN_19)","v":0},0]
[{"$f":"+DATA!M283","v":""},{"$f":"IF(A52=\"\",\"\",DATA!R283)","v":""},{"$f":"+DATA!$Q$283","v":0},null,0,null,null,null,null,null,null,null,null,null,null,null,null,null,{"$f":"SUM(MUN_20)","v":0},0]
[{"$f":"+DATA!M284","v":""},{"$f":"IF(A53=\"\",\"\",DATA!R284)","v":""},{"$f":"+DATA!$Q$284","v":0},null,0,null,null,null,null,null,null,null,null,null,null,null,null,null,{"$f":"SUM(MUN_21)","v":0},0]
[{"$f":"+DATA!M285","v":""},{"$f":"IF(A54=\"\",\"\",DATA!R285)","v":""},{"$f":"+DATA!$Q$285","v":0},null,0,null,null,null,null,null,null,null,null,null,null,null,null,null,{"$f":"SUM(MUN_22)","v":0},0]
[{"$f":"+DATA!M286","v":""},{"$f":"IF(A55=\"\",\"\",DATA!R286)","v":""},{"$f":"+DATA!$Q$286","v":0},null,0,null,null,null,null,null,null,null,null,null,null,null,null,null,{"$f":"SUM(MUN_23)","v":0},0]
[{"$f":"+DATA!M287","v":0},{"$f":"IF(A56=\"\",\"\",DATA!R287)","v":"00:00:00"},{"$f":"+DATA!$Q$287","v":0},null,0,null,null,null,null,null,null,null,null,null,null,null,null,null,{"$f":"SUM(F56:Q56)","v":0},0]
[]
[{"$f":"IF(A97=1,A108,A109)","v":"TOTALS"},null,{"$f":"SUM(C31:C56)","v":0},{"$f":"SUM(D31:D56)","v":0},{"$f":"SUM(E31:E56)","v":0},{"$f":"SUM(F33:F56)","v":0},{"$f":"SUM(G33:G56)","v":0},0,0,0,0,0,0,0,0,0,0,null,{"$f":"SUM(S33:S56)","v":0},{"$f":"SUM(T33:T56)","v":0}]
[]
[]
["TOTAL PTOG (paid by Province)",null,null,null,{"$f":"D22","v":0},{"$f":"IF($D$13=\"\",\"\",IF($E$62<>0,F58/$E58*$D$22,0))","v":""},{"$f":"IF($D$13=\"\",\"\",IF($E$62<>0,G58/$E58*$D$22,0))","v":""},{"$f":"IF($D$13=\"\",\"\",IF($E$62<>0,H58/$E58*$D$22,0))","v":""},{"$f":"IF($D$13=\"\",\"\",IF($E$62<>0,I58/$E58*$D$22,0))","v":""},{"$f":"IF($D$13=\"\",\"\",IF($E$62<>0,J58/$E58*$D$22,0))","v":""},"","","","","","","",null,{"$f":"SUM(F61:Q61)","v":0},{"$f":"+E61-S61","v":0}]
["TOTAL SPECIAL LEVY EXCLUDING TIG PAYMENT TO DIVISION",null,null,null,{"$f":"E61+E58","v":0},{"$f":"IF($D$13=\"\",\"\",IF($E$62<>0,F58/$E58*$E$62,0))","v":""},"","","","","","","","","","","",null,{"$f":"SUM(F62:Q62)","v":0},0]
[{"$f":"IF($A$97=1,B103,B104)","v":"  AMOUNT REMITTED TO DSFM"},null,null,null,{"$f":"IF($D$13=\"\",\"\",E62*D13)","v":""},{"$f":"IF($D$13=\"\",\"\",IF($E$62<>0,F58/$E58*$E$63,0))","v":""},{"$f":"IF($D$13=\"\",\"\",IF($E$62<>0,G58/$E58*$E$63,0))","v":""},{"$f":"IF($D$13=\"\",\"\",IF($E$62<>0,H58/$E58*$E$63,0))","v":""},{"$f":"IF($D$13=\"\",\"\",IF($E$62<>0,I58/$E58*$E$63,0))","v":""},{"$f":"IF($D$13=\"\",\"\",IF($E$62<>0,J58/$E58*$E$63,0))","v":""},"","","","","","","",null,{"$f":"SUM(F63:Q63)","v":0},{"$f":"IF($E$63=\"\",0,(E63-S63))","v":0}]
[null,null,null,null,null,{"$f":"IF(F16=DATA!$AI$5,\"D\",\"\")","v":""},{"$f":"IF(G16=DATA!$AI$5,\"D\",\"\")","v":""},{"$f":"IF(H16=DATA!$AI$5,\"D\",\"\")","v":""},{"$f":"IF(I16=DATA!$AI$5,\"D\",\"\")","v":""},{"$f":"IF(J16=DATA!$AI$3,\"D\",\"\")","v":""},{"$f":"IF(K16=DATA!$AI$3,\"D\",\"\")","v":""},{"$f":"IF(L16=DATA!$AI$3,\"D\",\"\")","v":""},{"$f":"IF(M16=DATA!$AI$3,\"D\",\"\")","v":""},{"$f":"IF(N16=DATA!$AI$3,\"D\",\"\")","v":""},{"$f":"IF(O16=DATA!$AI$3,\"D\",\"\")","v":""},{"$f":"IF(P16=DATA!$AI$3,\"D\",\"\")","v":""},{"$f":"IF(Q16=DATA!$AI$3,\"D\",\"\")","v":""}]
[null,null,null,null,null,{"$f":"IF($A$97=1,IF(F16=DATA!$AI$5,\"Please remit to DSFM within five days.\",\"\"),IF(F16=DATA!$AI$5,\"Veuillez remettre à la DSFM d’ici 5 jours.\n\",\"\"))","v":""},{"$f":"IF($A$97=1,IF(G16=DATA!$AI$5,\"Please remit to DSFM within five days.\",\"\"),IF(G16=DATA!$AI$5,\"Veuillez remettre à la DSFM d’ici 5 jours.\n\",\"\"))","v":""},{"$f":"IF($A$97=1,IF(H16=DATA!$AI$5,\"Please remit to DSFM within five days.\",\"\"),IF(H16=DATA!$AI$5,\"Veuillez remettre à la DSFM d’ici 5 jours.\n\",\"\"))","v":""},{"$f":"IF($A$97=1,IF(I16=DATA!$AI$5,\"Please remit to DSFM within five days.\",\"\"),IF(I16=DATA!$AI$5,\"Veuillez remettre à la DSFM d’ici 5 jours.\n\",\"\"))","v":""},{"$f":"IF($A$97=1,IF(J16=DATA!$AI$5,\"Please remit to DSFM within five days.\",\"\"),IF(J16=DATA!$AI$5,\"Veuillez remettre à la DSFM d’ici 5 jours.\",\"\"))","v":""},{"$f":"IF($A$97=1,IF(K16=DATA!$AI$5,\"Please remit to DSFM within five days.\",\"\"),IF(K16=DATA!$AI$5,\"Veuillez remettre à la DSFM d’ici 5 jours.\n\",\"\"))","v":""},{"$f":"IF($A$97=1,IF(L16=DATA!$AI$5,\"Please remit to DSFM within five days.\",\"\"),IF(L16=DATA!$AI$5,\"Veuillez remettre à la DSFM d’ici 5 jours.\n\",\"\"))","v":""},{"$f":"IF($A$97=1,IF(M16=DATA!$AI$5,\"Please remit to DSFM within five days.\",\"\"),IF(M16=DATA!$AI$5,\"Veuillez remettre à la DSFM d’ici 5 jours.\n\",\"\"))","v":""},{"$f":"IF($A$97=1,IF(N16=DATA!$AI$5,\"Please remit to DSFM within five days.\",\"\"),IF(N16=DATA!$AI$5,\"Veuillez remettre à la DSFM d’ici 5 jours.\n\",\"\"))","v":""},{"$f":"IF($A$97=1,IF(O16=DATA!$AI$5,\"Please remit to DSFM within five days.\",\"\"),IF(O16=DATA!$AI$5,\"Veuillez remettre à la DSFM d’ici 5 jours.\n\",\"\"))","v":""},{"$f":"IF($A$97=1,IF(P16=DATA!$AI$5,\"Please remit to DSFM within five days.\",\"\"),IF(P16=DATA!$AI$5,\"Veuillez remettre à la DSFM d’ici 5 jours.\n\",\"\"))","v":""},{"$f":"IF($A$97=1,IF(Q16=DATA!$AI$5,\"Please remit to DSFM within five days.\",\"\"),IF(Q16=DATA!$AI$5,\"Veuillez remettre à la DSFM d’ici 5 jours.\n\",\"\"))","v":""}]
[null,null,null,null,null,{"$f":"IF(OR(F16=$AN$1,F16=$AO$1),1,\"\")","v":1},"","","","","","","","","","",""]
[]
["Notes:",null,null,"Remarques :"]
["(1)  Per Calculation of Special Levy submitted with annual budget",null,null,"(1)  Selon le calcul de la taxe spéciale soumis avec le budget annuel"]
["(2)  Portion of Special Levy (per Note 1) provided by the Province of Manitoba",null,null,"(2)  Partie de la taxe spéciale (voir remarque 1) fournie par la province du Manitoba."]
[]
["I certify the above to be a true and correct statement.",null,null,"Je déclare vrais et exacts les renseignements ci-dessus."]
[]
[]
[]
["Date",null,null,"Secretary-treasurer / Secrétaire-trésorier"]
[]
[]
[]
[]
[]
[]
[]
[]
[]
[]
[]
[]
[]
[]
[]
[]
[]
[]
[]
[]
[{"$f":"+DATA!AQ1","v":1},null,null,null,null,"REMITTANCE 1","REMITTANCE 2","REMITTANCE 3","REMITTANCE 4","REMITTANCE 5","REMITTANCE 6","REMITTANCE 7","REMITTANCE 8","REMITTANCE 9","REMITTANCE 10","REMITTANCE 11","REMITTANCE 12"]
[{"$f":"IF($A$97=1,\"Please remit to DSFM within five days.\",\"Veuillez remettre à la DSFM d’ici 5 jours.\")","v":"Please remit to DSFM within five days."},null,null,null,null,"REMISE 1","REMISE 2","REMISE 3","REMISE 4","REMISE 5","REMISE 6","REMISE 7","REMISE 8","REMISE 9","REMISE 10","REMISE 11","REMISE 12"]
[]
["REMITTING AUTHORITY / MUNICIPALITY","TAX DUE DATE","TOTAL SPECIAL LEVY BY MUNICIPALITY","Less: \nGROSS EDUCATION PROPERTY TAX CREDIT","NET SPECIAL LEVY BY MUNICIPALITY"]
["MUNICIPALITÉ",{"$f":"+FORM!D42&\" \"&FORM!D43","v":"ÉCHÉANCE DE LA TAXE"},"TOTAL DE LA TAXE SPÉCIALE","Moins: CRÉDIT D'IMPÔT FONCIER DU MANITOBA EN MATIÉRE D'ÉDUCATION",{"$f":"+FORM!E42&\" \"&FORM!E43","v":"MONTANT NET DE LA TAXE SPÉCIALE"}]
[]
[null,"  AMOUNT REMITTED TO DSFM"]
[null," MONTANT REMIS À DSFM"]
[]
[null,null,"YEAR OF LEVY > "]
[null,"","ANNÉE DE LA TAXE >"]
["TOTALS"]
["TOTAUX",null,"SPECIAL LEVY BEFORE TIG (line J.) > "]
[null,null,"TAXE SPÉCIALE (line J. from SL form) > "]
["BALANCE TO"]
["COLLECT",null,"Calculation of Special Levy Remittances to la Division scolaire franco-manitobaine (DSFM)"]
["SOLDE",null,"Calcul de la taxe spéciale remise à la Division scolaire franco-manitobaine (DSFM)"]
["RECEVABLE"]
[null,null,"SPECIAL LEVY FOR DSFM (line H.) > "]
["Select the ",null,"TAXE SPÉCIALE POUR LA DSFM (line H.) > "]
["number of"]
["remittance(s).",null,"DSFM's share of EPTC (paid by Province)"]
["Sélectionnez",null,"Part du CIFME de la DSFM (payée par la province)"]
[" le nombre"]
[" de remises.",null,"EDUCATION PROPERTY TAX CREDIT (EPTC) >"]
[null,null,"CRÉDIT D'IMPÔT FONCIER DU MANITOBA POUR L'ÉDUCATION (EPTC) >"]
[]
[null,null,"PERCENTAGE (%) OF TOTAL SPECIAL LEVY APPLICABLE TO DSFM >"]
[null,null,"POURCENTAGE (%) DU TOTAL DE LA TAXE SPÉCIALE >"]
[]
[]
[null,null,"ADJUSTMENT FOR DSFM (line I.) >"]
[null,null,"AJUSTEMENT POUR LA DSFM (line I.) >"]
[]
[]
[null,"TOTAL FOR DSFM CALCULATION (EXCLUDES EPTC)"]
[null,"TOTAL POUR LE CALCUL DSFM (EXCLUT EPTC)"]
[]
[null,null,"NET TO BE PAID TO DSFM"]
[null,null,"MONTANT NET À ÊTRE PAYÉ À LA DSFM"]
[]
[null,null,"DSFM's share of TIG (paid by Province)"]
[null,null,"Part de l'incitatif fiscal de la DSFM (payée par la province)"]
[]
[null,null,"DSFM's share of PTOG (paid by Province)"]
[null,null,{"$f":"+C139","v":"Part de l'incitatif fiscal de la DSFM (payée par la province)"}]

{"sheet":"FORM","index":3,"n_rows":95,"n_cols":15,"rows_kept":95,"cut":false,"hidden":true,"merged":[[94,0,94,9],[33,11,34,12],[35,4,36,5],[35,6,36,7],[35,8,36,10],[35,11,36,12],[34,0,34,3],[33,4,34,5],[33,6,34,7],[36,0,36,3],[87,3,87,7],[63,0,63,2],[71,4,71,5],[77,7,77,8],[65,0,65,2],[46,11,46,12],[88,3,88,7],[70,0,70,3],[88,0,88,1],[76,0,76,4],[74,5,76,5],[74,0,74,4],[75,0,75,4],[78,7,78,8],[65,8,65,10],[67,4,68,5],[66,6,66,7],[66,4,66,5],[65,4,65,5],[56,0,56,2],[29,6,29,7],[29,8,29,10],[31,6,31,7],[31,8,31,10],[55,0,55,2],[64,0,64,2],[62,0,62,2],[50,0,50,2],[47,4,47,5],[50,4,50,5],[51,4,51,5],[54,6,54,7],[53,0,53,2],[54,4,54,5],[53,6,53,7],[52,4,52,5],[52,0,52,2],[51,0,51,2],[74,14,76,14],[67,8,68,10],[67,11,68,12],[74,6,76,6],[32,4,32,5],[32,6,32,7],[63,6,63,7],[63,8,63,10],[59,4,59,5],[72,4,72,5],[33,8,34,10],[51,8,51,10],[50,6,50,7],[46,8,46,10],[55,4,55,5],[54,8,54,10],[52,6,52,7],[53,8,53,10],[52,8,52,10],[55,8,55,10],[55,6,55,7],[63,4,63,5],[64,4,64,5],[62,4,62,5],[87,0,87,1],[57,11,57,12],[54,11,54,12],[51,11,51,12],[52,11,52,12],[53,11,53,12],[47,11,47,12],[48,11,48,12],[55,11,55,12],[58,11,58,12],[61,11,61,12],[60,0,60,2],[56,4,56,5],[56,6,56,7],[61,0,61,2],[61,4,61,5],[59,8,59,10],[61,6,61,7],[61,8,61,10],[77,10,77,11],[49,11,49,12],[50,11,50,12],[56,11,56,12],[56,8,56,10],[70,6,70,7],[70,8,70,10],[60,6,60,7],[60,8,60,10],[74,9,76,9],[79,10,79,11],[78,10,78,11],[66,0,66,2],[71,11,71,12],[70,11,70,12],[66,8,66,10],[66,11,66,12],[70,4,70,5],[74,10,76,11],[74,7,76,8],[63,11,63,12],[64,11,64,12],[64,6,64,7],[62,6,62,7],[68,0,68,3],[67,6,68,7],[67,0,67,3],[62,11,62,12],[65,6,65,7],[59,11,59,12],[60,11,60,12],[62,8,62,10],[59,6,59,7],[64,8,64,10],[60,4,60,5],[59,0,59,2],[57,4,57,5],[57,6,57,7],[57,8,57,10],[57,0,57,2],[58,4,58,5],[58,8,58,10],[58,6,58,7],[58,0,58,2],[51,6,51,7],[40,4,40,5],[29,4,29,5],[40,6,40,7],[43,6,43,7],[46,6,46,7],[45,6,45,7],[20,8,20,10],[50,8,50,10],[49,8,49,10],[42,8,42,10],[43,8,43,10],[44,8,44,10],[28,8,28,10],[45,8,45,10],[48,8,48,10],[21,8,21,10],[47,6,47,7],[47,8,47,10],[48,6,48,7],[48,4,48,5],[49,6,49,7],[44,6,44,7],[46,4,46,5],[41,11,41,12],[30,8,30,10],[40,8,40,10],[32,11,32,12],[29,11,29,12],[22,14,23,14],[25,14,32,14],[10,14,20,14],[44,4,44,5],[40,11,40,12],[30,11,30,12],[31,11,31,12],[41,8,41,10],[26,8,26,10],[25,8,25,10],[32,8,32,10],[39,8,39,10],[39,11,39,12],[38,6,38,12],[39,4,39,5],[39,6,39,7],[30,0,30,3],[31,0,31,3],[30,4,30,5],[30,6,30,7],[33,0,33,3],[31,4,31,5],[35,0,35,3],[14,11,15,11],[18,11,19,11],[22,11,23,11],[24,8,24,10],[22,8,23,10],[16,8,16,10],[18,8,19,10],[28,11,28,12],[92,0,92,12],[41,0,41,2],[45,0,45,2],[45,4,45,5],[41,6,41,7],[42,6,42,7],[41,4,41,5],[42,4,42,5],[65,11,65,12],[78,2,79,3],[43,11,43,12],[42,11,42,12],[44,11,44,12],[45,11,45,12],[43,0,43,2],[46,0,46,2],[44,0,44,2],[43,4,43,5],[54,0,54,2],[49,0,49,2],[47,0,47,2],[48,0,48,2],[53,4,53,5],[49,4,49,5],[0,0,0,9],[27,6,27,12],[28,4,28,5],[28,6,28,7],[4,2,5,6],[7,2,8,3],[14,0,15,4],[17,8,17,10],[14,8,15,10],[13,8,13,10],[10,3,11,5]]}
[]
["Calculation of Amount Remitted to la Division scolaire franco-manitobaine"]
["Calcul du montant remis à la Division scolaire franco-manitobaine"]
[]
["School Division:",null,{"$f":"IF(VLOOKUP(DIVNUM,LOOKUPTABLE,2)=\"Press arrow for your School Division >\",\"\",VLOOKUP(DIVNUM,LOOKUPTABLE,2))","v":""}]
["Division scolaire :"]
[]
["Year of Levy:",null,{"$f":"LEVYYEAR","v":2022}]
["Année de la taxe :"]
[]
["For the Period Ended:",null,null,{"$f":"+DATA!AI4","v":"00:00:00"},null,null,null,null,null,null,null,null,null,null,"PERCENTAGE IN BOX (C) IS FORMATTED TO DISPLAY ONLY 3 DECIMALS IN ORDER TO FIT THEIR RESPECTIVE FIELDS. THE ACTUAL UNROUNDED PERCENTAGE USED TO CALCULATE THE DSFM REMITTANCE ON THIS FORM IS SHOWN BELOW. "]
["Pour la période se terminant le :"]
[]
[]
["  TOTAL SPECIAL LEVY / TOTAL DE LA TAXE SPÉCIALE",null,null,null,null,null,null,null,{"$f":"DIVLEVY","v":0},null,null," (1)"]
[]
[null,null,null,null,null,null,null,null,"(A)"]
[]
["  PORTION OF SPECIAL LEVY APPLICABLE TO LA DIVISION SCOLAIRE FRANCO-MANITOBAINE",null,null,null,null,null,null,null,{"$f":"DSFMLEVY+DSFMADJ","v":0},null,null," (1)"]
["  QUOTE-PART DE LA TAXE SPÉCIALE ATTRIBUÉE À LA DIVISION SCOLAIRE FRANCO-MANITOBAINE"]
[null,null,null,null,null,null,null,null,"(B)"]
[]
["  PERCENTAGE (%) OF TOTAL SPECIAL LEVY APPLICABLE TO LA DIVISION SCOLAIRE ",null,null,null,null,null,null,null,{"$f":"IF(I15>0,(I19/I15),0)","v":0},null,null,null,null,null,{"$f":"I23","v":0}]
["  FRANCO-MANITOBAINE : (B) ÷ (A) / POURCENTAGE (%) DU TOTAL DE LA TAXE SPÉCIALE"]
["  ATTRIBUÉ À LA DIVISION SCOLAIRE FRANCO-MANITOBAINE : (B) ÷ (A)",null,null,null,null,null,null,null,"(C)"]
[null,null,null,null,null,null,null,null,null,null,null,null,null,null,"THIS WILL ENSURE THE TOTAL OF REMITTANCES TO THE DSFM WILL MATCH THE AMOUNT (TOTAL OF LINES H. AND I.) CALCULATED ON YOUR SPECIAL LEVY FORM (ROUNDED TO THE NEAREST DOLLAR)."]
[]
[null,null,null,null,null,null,"AMOUNT COLLECTED / MONTANT PERÇU"]
[]
[null,null,null,null,null,null,null,null,"PRIOR PERIODS"]
["PROVINCE OF MANITOBA",null,null,null,"AMOUNT",null,"YEAR TO DATE",null,"PÉRIODES",null,null,"CURRENT PERIOD"]
["PROVINCE DU MANITOBA",null,null,null,"MONTANT",null,"À CE JOUR",null,"ANTÉRIEURES",null,null,"PÉRIODE COURANTE"]
[null,null,null,null,"(2)",null,"(D)",null,"(E)",null,null,"(D) - (E)"]
["EDUCATION PROPERTY TAX CREDIT",null,null,null,{"$f":"DIVEPTC","v":{"$error":"#VALUE!"}},null,{"$f":"SUM('DATA ENTRY'!F31:Q31)","v":0},null,{"$f":"G34-L34","v":{"$error":"#N/A"}},null,null,{"$f":"+DATA!AJ6","v":{"$error":"#N/A"}}]
["CRÉDIT D'IMPÔT FONCIER DU MANITOBA POUR L'ÉDUCATION"]
["TAX INCENTIVE GRANT",null,null,null,{"$f":"DIVTIG","v":{"$error":"#NAME?"}},null,{"$f":"SUM('DATA ENTRY'!F32:Q32)","v":0},null,{"$f":"G36-L36","v":{"$error":"#N/A"}},null,null,{"$f":"+DATA!AJ7","v":{"$error":"#N/A"}}]
["CRÉDIT D'IMPÔT FONCIER EN MATIÈRE D'ÉDUCATION"]
[]
[null,null,null,null,null,null,"AMOUNT COLLECTED / MONTANT PERÇU"]
[null,null,null,"TAX DUE"]
[null,null,null,"DATE","NET SPECIAL LEVY",null,null,null,"PRIOR PERIODS"]
["MUNICIPALITY / MUNICIPALITÉ",null,null,"ÉCHÉANCE","MONTANT NET DE",null,"YEAR TO DATE",null,"PÉRIODES",null,null,"CURRENT PERIOD"]
[null,null,null,"DE LA TAXE","LA TAXE SPÉCIALE",null,"À CE JOUR",null,"ANTÉRIEURES",null,null,"PÉRIODE COURANTE"]
[null,null,null,null,null,null,"(D)",null,"(E)",null,null,"(D) - (E)"]
[{"$f":"IF('DATA ENTRY'!A33=0,\"\",\"   \"&'DATA ENTRY'!A33)","v":"   "},null,null,{"$f":"'DATA ENTRY'!B33","v":""},{"$f":"HOMEMUN","v":0},null,{"$f":"SUM('DATA ENTRY'!F33:Q33)","v":0},null,{"$f":"G45-L45","v":{"$error":"#N/A"}},null,null,{"$f":"+DATA!AJ8","v":{"$error":"#N/A"}}]
[{"$f":"IF('DATA ENTRY'!A34=0,\"\",\"   \"&'DATA ENTRY'!A34)","v":"   "},null,null,{"$f":"'DATA ENTRY'!B34","v":""},{"$f":"'DATA ENTRY'!E34","v":0},null,{"$f":"SUM('DATA ENTRY'!F34:Q34)","v":0},null,{"$f":"G46-L46","v":{"$error":"#N/A"}},null,null,{"$f":"+DATA!AJ9","v":{"$error":"#N/A"}}]
[{"$f":"IF('DATA ENTRY'!A35=0,\"\",\"   \"&'DATA ENTRY'!A35)","v":"   "},null,null,{"$f":"'DATA ENTRY'!B35","v":""},{"$f":"'DATA ENTRY'!E35","v":0},null,{"$f":"SUM('DATA ENTRY'!F35:Q35)","v":0},null,{"$f":"G47-L47","v":{"$error":"#N/A"}},null,null,{"$f":"+DATA!AJ10","v":{"$error":"#N/A"}}]
[{"$f":"IF('DATA ENTRY'!A36=0,\"\",\"   \"&'DATA ENTRY'!A36)","v":"   "},null,null,{"$f":"'DATA ENTRY'!B36","v":""},{"$f":"'DATA ENTRY'!E36","v":0},null,{"$f":"SUM('DATA ENTRY'!F36:Q36)","v":0},null,{"$error":"#N/A"},null,null,{"$f":"+DATA!AJ11","v":{"$error":"#N/A"}}]
[{"$f":"IF('DATA ENTRY'!A37=0,\"\",\"   \"&'DATA ENTRY'!A37)","v":"   "},null,null,{"$f":"'DATA ENTRY'!B37","v":""},{"$f":"'DATA ENTRY'!E37","v":0},null,{"$f":"SUM('DATA ENTRY'!F37:Q37)","v":0},null,{"$error":"#N/A"},null,null,{"$f":"+DATA!AJ12","v":{"$error":"#N/A"}}]
[{"$f":"IF('DATA ENTRY'!A38=0,\"\",\"   \"&'DATA ENTRY'!A38)","v":"   "},null,null,{"$f":"'DATA ENTRY'!B38","v":""},{"$f":"'DATA ENTRY'!E38","v":0},null,{"$f":"SUM('DATA ENTRY'!F38:Q38)","v":0},null,{"$error":"#N/A"},null,null,{"$f":"+DATA!AJ13","v":{"$error":"#N/A"}}]
[{"$f":"IF('DATA ENTRY'!A39=0,\"\",\"   \"&'DATA ENTRY'!A39)","v":"   "},null,null,{"$f":"'DATA ENTRY'!B39","v":""},{"$f":"'DATA ENTRY'!E39","v":0},null,{"$f":"SUM('DATA ENTRY'!F39:Q39)","v":0},null,{"$error":"#N/A"},null,null,{"$f":"+DATA!AJ14","v":{"$error":"#N/A"}}]
[{"$f":"IF('DATA ENTRY'!A40=0,\"\",\"   \"&'DATA ENTRY'!A40)","v":"   "},null,null,{"$f":"'DATA ENTRY'!B40","v":""},{"$f":"'DATA ENTRY'!E40","v":0},null,{"$f":"SUM('DATA ENTRY'!F40:Q40)","v":0},null,{"$error":"#N/A"},null,null,{"$f":"+DATA!AJ15","v":{"$error":"#N/A"}}]
[{"$f":"IF('DATA ENTRY'!A41=0,\"\",\"   \"&'DATA ENTRY'!A41)","v":"   "},null,null,{"$f":"'DATA ENTRY'!B41","v":""},{"$f":"'DATA ENTRY'!E41","v":0},null,{"$f":"SUM('DATA ENTRY'!F41:Q41)","v":0},null,{"$error":"#N/A"},null,null,{"$f":"+DATA!AJ16","v":{"$error":"#N/A"}}]
[{"$f":"IF('DATA ENTRY'!A42=0,\"\",\"   \"&'DATA ENTRY'!A42)","v":"   "},null,null,{"$f":"'DATA ENTRY'!B42","v":""},{"$f":"'DATA ENTRY'!E42","v":0},null,{"$f":"SUM('DATA ENTRY'!F42:Q42)","v":0},null,{"$error":"#N/A"},null,null,{"$f":"+DATA!AJ17","v":{"$error":"#N/A"}}]
[{"$f":"IF('DATA ENTRY'!A43=0,\"\",\"   \"&'DATA ENTRY'!A43)","v":"   "},null,null,{"$f":"'DATA ENTRY'!B43","v":""},{"$f":"'DATA ENTRY'!E43","v":0},null,{"$f":"SUM('DATA ENTRY'!F43:Q43)","v":0},null,{"$error":"#N/A"},null,null,{"$f":"+DATA!AJ18","v":{"$error":"#N/A"}}]
[{"$f":"IF('DATA ENTRY'!A44=0,\"\",\"   \"&'DATA ENTRY'!A44)","v":"   "},null,null,{"$f":"'DATA ENTRY'!B44","v":""},{"$f":"'DATA ENTRY'!E44","v":0},null,{"$f":"SUM('DATA ENTRY'!F44:Q44)","v":0},null,{"$error":"#N/A"},null,null,{"$f":"+DATA!AJ19","v":{"$error":"#N/A"}}]
[{"$f":"IF('DATA ENTRY'!A45=0,\"\",\"   \"&'DATA ENTRY'!A45)","v":"   "},null,null,{"$f":"'DATA ENTRY'!B45","v":""},{"$f":"'DATA ENTRY'!E45","v":0},null,{"$f":"SUM('DATA ENTRY'!F45:Q45)","v":0},null,{"$error":"#N/A"},null,null,{"$f":"+DATA!AJ20","v":{"$error":"#N/A"}}]
[{"$f":"IF('DATA ENTRY'!A46=0,\"\",\"   \"&'DATA ENTRY'!A46)","v":"   "},null,null,{"$f":"'DATA ENTRY'!B46","v":""},{"$f":"'DATA ENTRY'!E46","v":0},null,{"$f":"SUM('DATA ENTRY'!F46:Q46)","v":0},null,{"$error":"#N/A"},null,null,{"$f":"+DATA!AJ21","v":{"$error":"#N/A"}}]
[{"$f":"IF('DATA ENTRY'!A47=0,\"\",\"   \"&'DATA ENTRY'!A47)","v":"   "},null,null,{"$f":"'DATA ENTRY'!B47","v":""},{"$f":"'DATA ENTRY'!E47","v":0},null,{"$f":"SUM('DATA ENTRY'!F47:Q47)","v":0},null,{"$error":"#N/A"},null,null,{"$f":"+DATA!AJ22","v":{"$error":"#N/A"}}]
[{"$f":"IF('DATA ENTRY'!A48=0,\"\",\"   \"&'DATA ENTRY'!A48)","v":"   "},null,null,{"$f":"'DATA ENTRY'!B48","v":""},{"$f":"'DATA ENTRY'!E48","v":0},null,{"$f":"SUM('DATA ENTRY'!F48:Q48)","v":0},null,{"$error":"#N/A"},null,null,{"$f":"+DATA!AJ23","v":{"$error":"#N/A"}}]
[{"$f":"IF('DATA ENTRY'!A49=0,\"\",\"   \"&'DATA ENTRY'!A49)","v":"   "},null,null,{"$f":"'DATA ENTRY'!B49","v":""},{"$f":"'DATA ENTRY'!E49","v":0},null,{"$f":"SUM('DATA ENTRY'!F49:Q49)","v":0},null,{"$f":"G61-L61","v":{"$error":"#N/A"}},null,null,{"$f":"+DATA!AJ24","v":{"$error":"#N/A"}}]
[{"$f":"IF('DATA ENTRY'!A50=0,\"\",\"   \"&'DATA ENTRY'!A50)","v":"   "},null,null,{"$f":"'DATA ENTRY'!B50","v":""},{"$f":"'DATA ENTRY'!E50","v":0},null,{"$f":"SUM('DATA ENTRY'!F50:Q50)","v":0},null,{"$error":"#N/A"},null,null,{"$f":"+DATA!AJ25","v":{"$error":"#N/A"}}]
[{"$f":"IF('DATA ENTRY'!A51=0,\"\",\"   \"&'DATA ENTRY'!A51)","v":"   "},null,null,{"$f":"'DATA ENTRY'!B51","v":""},{"$f":"'DATA ENTRY'!E51","v":0},null,{"$f":"SUM('DATA ENTRY'!F51:Q51)","v":0},null,{"$error":"#N/A"},null,null,{"$f":"+DATA!AJ26","v":{"$error":"#N/A"}}]
[{"$f":"IF('DATA ENTRY'!A52=0,\"\",\"   \"&'DATA ENTRY'!A52)","v":"   "},null,null,{"$f":"'DATA ENTRY'!B52","v":""},{"$f":"'DATA ENTRY'!E52","v":0},null,{"$f":"SUM('DATA ENTRY'!F52:Q52)","v":0},null,{"$error":"#N/A"},null,null,{"$f":"+DATA!AJ27","v":{"$error":"#N/A"}}]
[{"$f":"IF('DATA ENTRY'!A53=0,\"\",\"   \"&'DATA ENTRY'!A53)","v":"   "},null,null,{"$f":"'DATA ENTRY'!B53","v":""},{"$f":"'DATA ENTRY'!E53","v":0},null,{"$f":"SUM('DATA ENTRY'!F53:Q53)","v":0},null,{"$error":"#N/A"},null,null,{"$f":"+DATA!AJ28","v":{"$error":"#N/A"}}]
[{"$f":"IF('DATA ENTRY'!A54=0,\"\",\"   \"&'DATA ENTRY'!A54)","v":"   "},null,null,{"$f":"'DATA ENTRY'!B54","v":""},{"$f":"'DATA ENTRY'!E54","v":0},null,{"$f":"SUM('DATA ENTRY'!F54:Q54)","v":0},null,{"$error":"#N/A"},null,null,{"$f":"+DATA!AJ29","v":{"$error":"#N/A"}}]
[{"$f":"IF('DATA ENTRY'!A55=0,\"\",\"   \"&'DATA ENTRY'!A55)","v":"   "},null,null,{"$f":"'DATA ENTRY'!B55","v":""},{"$f":"'DATA ENTRY'!E55","v":0},null,{"$f":"SUM('DATA ENTRY'!F55:Q55)","v":0},null,{"$error":"#N/A"},null,null,{"$f":"+DATA!AJ30","v":{"$error":"#N/A"}}]
["  TOTAL MUNICIPALITIES",null,null,null,{"$f":"SUM(E45:F67)","v":0},null,{"$f":"SUM(G45:H67)","v":0},null,{"$f":"SUM(I45:K67)","v":{"$error":"#N/A"}},null,null,{"$f":"SUM(L45:M67)","v":{"$error":"#N/A"}}]
["  TOTAL POUR LES MUNICIPALITÉS"]
[]
["  GRAND TOTAL / TOTAL GÉNÉRAL",null,null,null,{"$f":"E34+E36+E68","v":{"$error":"#VALUE!"}},null,{"$f":"G34+G36+G68","v":0},null,{"$f":"+I34+I36+I68","v":{"$error":"#N/A"}},null,null,{"$f":"L34+L36+L68","v":{"$error":"#N/A"}}]
[null,null,null,null,"AMOUNT (A)",null,null,null,null,null,null,"(F)"]
[null,null,null,null,"MONTANT (A)"]
[]
["  AMOUNT REMITTED TO LA DIVISION SCOLAIRE",null,null,null,null,{"$f":"I23","v":0},"X",{"$f":"L71","v":{"$error":"#N/A"}},null,"=",{"$f":"ROUND(F75*H75,0)","v":{"$error":"#N/A"}},null,null,null,"< REMITTANCE IS ROUNDED TO NEAREST DOLLAR."]
["  FRANCO-MANITOBAINE / MONTANT REMIS À LA DIVISION"]
["  SCOLAIRE FRANCO-MANITOBAINE"]
[]
[null,"YEAR TO DATE",{"$f":"ROUND(G71*F75,0)","v":0},null,null,"(C)",null,"(F)",null,null,"REMITTANCE"]
[null,"À CE JOUR",null,null,null,null,null,null,null,null,"REMISE"]
[]
[]
["Notes:",null,null,null,null,null,"Remarques :"]
["(1)  Per Calculation of Special Levy submitted with annual budget",null,null,null,null,null,"(1)  Selon le calcul de la taxe spéciale soumis avec le budget annuel"]
["(2)  Portion of Special Levy (per Note 1) provided by the Province of Manitoba",null,null,null,null,null,"(2)  Partie de la taxe spéciale (voir remarque 1) fournie par la province"]
[null,null,null,null,null,null,"      du Manitoba"]
["I certify the above to be a true and correct statement. / Je déclare vrais et exacts les renseignements ci-dessus."]
[{"$f":"IF(DATE_ON_OFF=1,NOW(),IF(DATE_ON_OFF=2,\"\",DATE_ENTRY))","v":""}]
["Date",null,null,"Secretary-treasurer / Secrétaire-trésorier"]
[]
["c.c. : Division scolaire franco-manitobaine"]
["         School Division / Division scolaire"]
["This form is available on the Internet at: / La présente formule est disponible sur Internet : http://www.edu.gov.mb.ca/k12/finance/forms/index.html"]
[]
["Form 2/Formule 2"]

{"sheet":"Changes","index":4,"n_rows":18,"n_cols":2,"rows_kept":18,"cut":false,"hidden":true,"merged":[]}
[]
[null,"Changes in"]
[null,"Data Entry Sheet"]
[1," added a row of TOTAL in Row 42"]
[2," added 2 columns (Column M of YEAR TO DATE COLLECTION and column N of BALANCE TO COLLECT)"]
[3,"In Column D 17: D 40 there is a Hide messege of Error (If the sum of the amounts in the PERIODS Cells is/are bigger than the TOTAL)"]
[4,"Maked the EPTC and the TIG the same way as the other entries."]
[5,"There is no needed to put Zero before the amounts in the AMOUNTS COLLECTED the formula works no matter."]
[6,"The TIG in the row 16 it fills automatically"]
[7,"Added 2 columns for Special Levy and EPTC"]
[]
[]
[null,"Changes in"]
[null,"Form Sheet"]
[1,"Changed the formula en Column L ( Current Period, no there is no needed to put Zero en the AMOUNTS COLLECTED )"]
[2,"Changed the Rows 34 and 36 (the EPTC and the TIG the same way as the other entries )"]
[3,"Changed the formula in Cell L71 as the same of the other's of the Grand Total."]
[4,"Changed the formula in Cell D11 so they can bring me the date of the current period."]